2CCN - Level 2 Cost Centre Name,,9CCN - Level 9 Cost Centre Name,9CCC - Level 9 Cost Centre Code,9AN - Level 9 Account Name,9AC - Level 9 Account Code,Transaction Description,Date Paid,Transaction Reference,Analysed Amount,2AC - Level 2 Account Codes,Supplier Name,Supplier Code
Gloucester City Council,,Countryside Unit,LP201,Contract Cleaning,3620,cleaning rangers office,01/07/2016,420135,130,NET,Cv Fisher Cleaning Services,14907C
Gloucester City Council,,Countryside Unit,LP201,General Repair/Maint Buildings,3000,shed rental JUL-SEPT16,01/07/2016,420211,1500,NET,REDACTED,REDACTED
Gloucester City Council,,Crematorium,HC200,Fees For Services Received,5350,Crem Fees June 2016,01/07/2016,420640,54,NET,Dr R W Bell,01571P
Gloucester City Council,,Crematorium,HC200,Fees For Services Received,5350,Crem Fees June 2016,01/07/2016,420641,1102.16,NET,Dr D Martin,00890P
Gloucester City Council,,Crematorium,HC200,Fees For Services Received,5350,Crem Fees June 2016,01/07/2016,420642,1658.08,NET,Dr C M Stretton,00306P
Gloucester City Council,,Development Management,PT200,Basic Pay - Temporary Staff,2751,Temporary staff w/e 13/06/2016,01/07/2016,420480,1202.25,NET,The Oyster Partnership Limited,14900T
Gloucester City Council,,Economic Development,FP300,Business Grant,7116,DCMS BROADBAND SCHEME,01/07/2016,420643,7560,NET,Bt Group Plc,17161K
Gloucester City Council,,Economic Development,FP300,Business Grant,7116,DCMS BROADBAND SCHEME,01/07/2016,420645,40365.44,NET,Virgin Media Limited,17163F
Gloucester City Council,,Economic Development,FP300,Business Grant,7116,DCMS BROADBAND SCHEME,01/07/2016,420646,5364.17,NET,Talk Talk Communications Ltd,16510S
Gloucester City Council,,REDACTED,REDACTED,REDACTED,REDACTED,REDACTED,01/07/2016,REDACTED,99.36,NET,REDACTED,REDACTED
Gloucester City Council,,Homelessness Prevention,CH122,Basic Pay - Temporary Staff,2751,Temporary staff w/e 12/06/2016,01/07/2016,420472,507.86,NET,Venn Group Ltd,04339P
Gloucester City Council,,Homelessness Prevention,CH122,Basic Pay - Temporary Staff,2751,Temporary staff w/e 19/06/2016,01/07/2016,420473,874.45,NET,Venn Group Ltd,04339P
Gloucester City Council,,REDACTED,REDACTED,REDACTED,REDACTED,REDACTED,01/07/2016,REDACTED,300,NET,REDACTED,REDACTED
Gloucester City Council,,Investment Property,RB500,Consultants Fees,5349,Grosvenor House Jan-Mar 16,01/07/2016,419324,356.06,NET,Alder King,02367D
Gloucester City Council,,Pollution Control,HE300,Fees For Services Received,5350,Pollution Prevention & control APR16,01/07/2016,420234,2141.7,NET,Bromsgrove District Council,15037G
Gloucester City Council,,Registration Of Electors,RS400,Fees For Services Received,5350,Van Rental,01/07/2016,418702,84.1,NET,Thrifty Van Hire,00546W
Gloucester City Council,,Registration Of Electors,RS400,Printing,5300,Ballot Papers,01/07/2016,420467,4661,NET,Alpha Response Print & Mail Ltd,03029U
Gloucester City Council,,Registration Of Electors,RS400,Printing,5300,June Referendum poll cards,01/07/2016,420465,320,NET,Alpha Response Print & Mail Ltd,03029U
Gloucester City Council,,Registration Of Electors,RS400,Printing,5300,Pack Labels,01/07/2016,420464,219,NET,Alpha Response Print & Mail Ltd,03029U
Gloucester City Council,,Registration Of Electors,RS400,Printing,5300,Postal Vote Packs,01/07/2016,420466,7763,NET,Alpha Response Print & Mail Ltd,03029U
Gloucester City Council,,Superbreak,LT104,Materials For Sale,5080,tickets sold on commission,01/07/2016,420483,685,NET,Superbreak Mini Holidays,00712D
Gloucester City Council,,Superbreak,LT104,Sale Of Goods And Services,9230,tickets sold on commission,01/07/2016,420483,-57.05,NET,Superbreak Mini Holidays,00712D
Gloucester City Council,,Client Revs & Bens Contract,RT240,Bailiffs Fees,5368,VAT due on statutory fees,04/07/2016,420474,0,NET,Bristow & Sutor,05450M
Gloucester City Council,,Client Revs & Bens Contract,RT240,Bailiffs Fees,5368,VAT due on statutory fees,04/07/2016,420475,0,NET,Bristow & Sutor,05450M
Gloucester City Council,,General Works Fund,RY203,Capital General Repairs & Main,0013,Coney Hill Crematorium,04/07/2016,419948,59,CAP,Abbey Loos Limited,10787B
Gloucester City Council,,REDACTED,REDACTED,REDACTED,REDACTED,REDACTED,04/07/2016,REDACTED,120,NET,REDACTED,REDACTED
Gloucester City Council,,REDACTED,REDACTED,REDACTED,REDACTED,REDACTED,04/07/2016,REDACTED,184.19,NET,REDACTED,REDACTED
Gloucester City Council,,Herbert Reception Upgrade,RY201,Consultants Fees,0030,Consultancy Fees,04/07/2016,419927,1125,CAP,Goddard Consulting Llp,10598G
Gloucester City Council,,Investment Property,RB500,Service Charges,3020,Bentinck House Kings Qtr JUN-SEP16,04/07/2016,419693,3876.25,NET,Alder King,02367D
Gloucester City Council,,Investment Property,RB500,Service Charges,3020,KINGS HOUSE JUN-SEP16 S/C ON ACCOUNT,04/07/2016,419702,2655,NET,Alder King,02367D
Gloucester City Council,,Investment Property,RB500,Service Charges,3020,KINGS HOUSE S/C ON ACCOUNT JUN-SEP16,04/07/2016,419701,2624.25,NET,Alder King,02367D
Gloucester City Council,,Investment Property,RB500,Service Charges,3020,Unit 11 Grosvenor House JUN-SEP16,04/07/2016,419695,338.25,NET,Alder King,02367D
Gloucester City Council,,Investment Property,RB500,Service Charges,3020,Unit12-16 Grosvenor House JUN-SEP16,04/07/2016,419694,276.25,NET,Alder King,02367D
Gloucester City Council,,Investment Property,RB500,Service Charges,3020,Unit 50 Grosvenore House JUN-SEP16,04/07/2016,419697,3108.5,NET,Alder King,02367D
Gloucester City Council,,Investment Property,RB500,Service Charges,3020,Unit 8 Grosvenor House JUN-SEP16,04/07/2016,419699,194,NET,Alder King,02367D
Gloucester City Council,,Investment Property,RB500,Service Charges,3020,Unit 9 Grosvenor House JUN-SEP16,04/07/2016,419698,316.75,NET,Alder King,02367D
Gloucester City Council,,Statutory Testing,RS310,Legionella,3018,Risk Assessment,04/07/2016,420477,525,NET,Kingfisher Environmental Services Ltd,04738V
Gloucester City Council,,The Fleece,RB530,General Repair/Maint Buildings,3000,Old Fleece Hotel,04/07/2016,419947,23,NET,Abbey Loos Limited,10787B
Gloucester City Council,,Blackfriars,LA609,Catering Provisions -Liquor,5111,drinks,05/07/2016,420714,96.98,NET,Cellar Supplies Cheltenham Ltd,01563L
Gloucester City Council,,Blackfriars,LA609,Catering Provisions -Liquor,5111,drinks,05/07/2016,420715,175.84,NET,Cellar Supplies Cheltenham Ltd,01563L
Gloucester City Council,,City Museum And Art Gallery,LM200,Printing,5300,Museum Shop Vinyls,05/07/2016,420711,30,NET,Alpha Colour Printers Ltd,00945B
Gloucester City Council,,Client Revs & Bens Contract,RT240,Fees For Services Received,5350,CCN2016P04 stock transfer,05/07/2016,420704,3273.6,NET,Civica Uk Ltd,10841X
Gloucester City Council,,Client Revs & Bens Contract,RT240,Fees For Services Received,5350,CCN/2016/P07,05/07/2016,420701,3000,NET,Civica Uk Ltd,10841X
Gloucester City Council,,Countryside Unit,LP201,Maint Of Grounds - General,3030,goods,05/07/2016,420733,56.06,NET,Screwfix Direct,54672H
Gloucester City Council,,Economic Development,FP300,Business Grant,7116,BDUK Broadband Vouchers re inv 28194 & inv 28197,05/07/2016,420734,5900,NET,Connexus Networks Ltd,07090B
Gloucester City Council,,Financial Services,RT200,Vocational Training,2970,AAT EXAM FEES,05/07/2016,420518,75,NET,Pitman Training Worcester,16384W
Gloucester City Council,,Guildhall Bar And Caf�,LA210,Catering Provisions -Liquor,5111,drinks,05/07/2016,420716,984.99,NET,Cellar Supplies Cheltenham Ltd,01563L
Gloucester City Council,,Guildhall Bar And Caf�,LA210,Catering Provisions -Liquor,5111,messer CO2,05/07/2016,420717,12.49,NET,Cellar Supplies Cheltenham Ltd,01563L
Gloucester City Council,,REDACTED,REDACTED,REDACTED,REDACTED,REDACTED,05/07/2016,REDACTED,148.02,NET,REDACTED,REDACTED
Gloucester City Council,,REDACTED,REDACTED,REDACTED,REDACTED,REDACTED,05/07/2016,REDACTED,850,NET,REDACTED,REDACTED
Gloucester City Council,,Head Of Regeneration & Eco Dev,GO102,Fees For Services Received,5350,Land Train Hire,05/07/2016,420735,4095,NET,Lakeandland T/A Land Train Hire Nationwide,16431N
Gloucester City Council,,Homelessness,CH120,Removal And Storage Fees,5513,storage fees,05/07/2016,420725,630,NET,Advanced Removals & Storage Ltd,57142R
Gloucester City Council,,Homelessness,CH120,Removal And Storage Fees,5513,storage fees,05/07/2016,420726,178.71,NET,Advanced Removals & Storage Ltd,57142R
Gloucester City Council,,Rehousing,CH111,Fees For Services Received,5350,medical report,05/07/2016,420718,20.5,NET,2gether Nhs Foundation Trust,16503N
Gloucester City Council,,Rehousing,CH111,Fees For Services Received,5350,medical report,05/07/2016,420719,20.5,NET,Rosebank Health,03041E
Gloucester City Council,,Rehousing,CH111,Fees For Services Received,5350,medical report,05/07/2016,420720,20.5,NET,Bartongate Surgery,05680S
Gloucester City Council,,Rehousing,CH111,Fees For Services Received,5350,medical report,05/07/2016,420721,20.5,NET,Saintbridge Surgery,58374F
Gloucester City Council,,Rehousing,CH111,Fees For Services Received,5350,medical report,05/07/2016,420723,20.5,NET,Rosebank Health,03041E
Gloucester City Council,,Rehousing,CH111,Fees For Services Received,5350,medical report,05/07/2016,420724,20.5,NET,Kingsholm Surgery,11948S
Gloucester City Council,,Client Revs & Bens Contract,RT240,Fees For Services Received,5350,ccn/2016/p05,06/07/2016,420702,3311,NET,Civica Uk Ltd,10841X
Gloucester City Council,,Client Revs & Bens Contract,RT240,Fees For Services Received,5350,CCN2016P06,06/07/2016,420703,6640,NET,Civica Uk Ltd,10841X
Gloucester City Council,,Coll Fund Revenue Account,ZC100,County Council Precept,7460,precept payment due 27/07/16,06/07/2016,420880,4168751.7,NET,Gloucestershire County Council,18650D
Gloucester City Council,,Coll Fund Revenue Account,ZC100,Nndr Central Share,7474,BRR pooling payment due 19/07/16,06/07/2016,420879,478105,NET,Gloucestershire County Council,18650D
Gloucester City Council,,Coll Fund Revenue Account,ZC100,Nndr Tariff,7473,brr pooling payment due 19/07/16,06/07/2016,420878,1497723,NET,Stroud District Council,74737T
Gloucester City Council,,Coll Fund Revenue Account,ZC100,Police Precept,7461,precept payment due 27/07/16,06/07/2016,420881,773478.2,NET,"Police & Crime Commissioner, Gloucestershire",49521B
Gloucester City Council,,Development Management,PT200,Fees For Services Received,5350,Expenses,06/07/2016,420882,5283,NET,Plymouth City Council,17170J
Gloucester City Council,,Development Management,PT200,Fees For Services Received,5350,THE OYSTER PARTNERSHIP LIMITED,06/07/2016,420481,2387.9,NET,The Oyster Partnership Limited,14900T
Gloucester City Council,,Employers Pension Contribs,ZR355,Pension Contribs Incl Backf,2901,pension deficit payment for June 2016,06/07/2016,420877,238916.67,NET,Gloucestershire County Council,10614L
Gloucester City Council,,Financial Services,RT200,Fees For Services Received,5350,LADS programme IT costs MAY16,06/07/2016,420137,13168.95,NET,Civica Uk Ltd,10841X
Gloucester City Council,,Guildhall Bar And Caf�,LA210,Catering Provisions -Food,5110,Food,06/07/2016,420828,95.58,NET,Woodward Foodservice,10714F
Gloucester City Council,,REDACTED,REDACTED,REDACTED,REDACTED,REDACTED,06/07/2016,REDACTED,100,NET,REDACTED,REDACTED
Gloucester City Council,,REDACTED,REDACTED,REDACTED,REDACTED,REDACTED,06/07/2016,REDACTED,100,NET,REDACTED,REDACTED
Gloucester City Council,,REDACTED,REDACTED,REDACTED,REDACTED,REDACTED,06/07/2016,REDACTED,203.96,NET,REDACTED,REDACTED
Gloucester City Council,,REDACTED,REDACTED,REDACTED,REDACTED,REDACTED,06/07/2016,REDACTED,100,NET,REDACTED,REDACTED
Gloucester City Council,,REDACTED,REDACTED,REDACTED,REDACTED,REDACTED,06/07/2016,REDACTED,1000,NET,REDACTED,REDACTED
Gloucester City Council,,REDACTED,REDACTED,REDACTED,REDACTED,REDACTED,06/07/2016,REDACTED,500,NET,REDACTED,REDACTED
Gloucester City Council,,REDACTED,REDACTED,REDACTED,REDACTED,REDACTED,06/07/2016,REDACTED,400,NET,REDACTED,REDACTED
Gloucester City Council,,Investment Property,RB500,Service Charges,3020,Pedestrian access s/c JUN-SEP16,06/07/2016,419681,908.78,NET,Workman Llp,11021M
Gloucester City Council,,Off Street Car Parks,PP110,Rents,3200,car park office s/c JUN-SEP16,06/07/2016,419680,125,NET,Workman Llp,11021M
Gloucester City Council,,Off Street Car Parks,PP110,Rents,3200,car park s/c JUN-SEP16,06/07/2016,419679,63528.19,NET,Workman Llp,11021M
Gloucester City Council,,Off Street Car Parks,PP110,Service Charges,3020,car park office s/c JUN-SEP16,06/07/2016,419680,245.1,NET,Workman Llp,11021M
Gloucester City Council,,Off Street Car Parks,PP110,Service Charges,3020,car park s/c JUN-SEP16,06/07/2016,419679,1927.71,NET,Workman Llp,11021M
Gloucester City Council,,Retail Market - Landlord,HM300,Service Charges,3020,Market Hall s/c JUN-SEP16,06/07/2016,419678,11015.5,NET,Workman Llp,11021M
Gloucester City Council,,The Arbor,HC501,Catering Provisions -Food,5110,Food,06/07/2016,420829,124.24,NET,Bidvest Foodservice (3663),55585U
Gloucester City Council,,The Arbor,HC501,Catering Provisions -Food,5110,Food,06/07/2016,420830,78.56,NET,Bidvest Foodservice (3663),55585U
Gloucester City Council,,The Arbor,HC501,Catering Provisions -Food,5110,Food,06/07/2016,420831,276.02,NET,Bidvest Foodservice (3663),55585U
Gloucester City Council,,The Arbor,HC501,Catering Provisions -Food,5110,Food,06/07/2016,420832,30.71,NET,Charles Saunders Food Service,16467R
Gloucester City Council,,The Arbor,HC501,Catering Provisions -Food,5110,Food,06/07/2016,420833,90.23,NET,Bidvest Foodservice (3663),55585U
Gloucester City Council,,The Arbor,HC501,Catering Provisions -Food,5110,Food,06/07/2016,420834,81.06,NET,Total Produce Gloucester,12645E
Gloucester City Council,,The Arbor,HC501,Catering Provisions -Food,5110,Food,06/07/2016,420835,43.85,NET,Total Produce Gloucester,12645E
Gloucester City Council,,The Arbor,HC501,Catering Provisions -Food,5110,Food,06/07/2016,420837,31.45,NET,Total Produce Gloucester,12645E
Gloucester City Council,,The Arbor,HC501,Catering Provisions -Food,5110,Food,06/07/2016,420838,18.93,NET,Total Produce Gloucester,12645E
Gloucester City Council,,The Arbor,HC501,Catering Provisions -Food,5110,Food,06/07/2016,420839,30.84,NET,Total Produce Gloucester,12645E
Gloucester City Council,,The Arbor,HC501,Catering Provisions -Food,5110,Food,06/07/2016,420840,73.58,NET,Total Produce Gloucester,12645E
Gloucester City Council,,The Arbor,HC501,Catering Provisions -Food,5110,Food,06/07/2016,420841,14.14,NET,Total Produce Gloucester,12645E
Gloucester City Council,,The Arbor,HC501,Catering Provisions -Food,5110,Milk,06/07/2016,420836,9.52,NET,Total Produce Gloucester,12645E
Gloucester City Council,,Client Revs & Bens Contract,RT240,Fees For Services Received,5350,CCN/2016/P12,07/07/2016,420700,9942.42,NET,Civica Uk Ltd,10841X
Gloucester City Council,,Economic Development,FP300,Business Grant,7116,broadband vouchers,07/07/2016,420890,3000,NET,Nomis Connections Ltd,15813D
Gloucester City Council,,Economic Development,FP300,Business Grant,7116,broadband vouchers,07/07/2016,420891,3000,NET,Airband Community Internet Ltd,16403U
Gloucester City Council,,Economic Development,FP300,Business Grant,7116,broadband vouchers,07/07/2016,420892,3000,NET,Kcom,15848H
Gloucester City Council,,Guildhall Bar And Caf�,LA210,Catering Provisions -Food,5110,Milk,07/07/2016,420531,7.14,NET,Total Produce Gloucester,12645E
Gloucester City Council,,Guildhall Bar And Caf�,LA210,Catering Provisions -Food,5110,Milk,07/07/2016,420532,7.14,NET,Total Produce Gloucester,12645E
Gloucester City Council,,Guildhall Bar And Caf�,LA210,Catering Provisions -Food,5110,Milk,07/07/2016,420533,4.76,NET,Total Produce Gloucester,12645E
Gloucester City Council,,Guildhall Bar And Caf�,LA210,Catering Provisions -Liquor,5111,beergas,07/07/2016,420741,28.5,NET,Boc Ltd,59172L
Gloucester City Council,,Blackfriars,LA609,Room Hire,9410,Gin festival room booking,08/07/2016,420848,200,NET,Gloucestershire County Council,18650D
Gloucester City Council,,Business Transformation & Tech,RT700,Computer Network Maintenance,5443,Various Items,08/07/2016,420710,2443.02,NET,Civica Services Ltd,58099E
Gloucester City Council,,Business Transformation & Tech,RT700,Computer Software <5000,5425,recharge for Gloucestershire Homeseeker,08/07/2016,419649,9000,NET,Forest Of Dean District Council,15985W
Gloucester City Council,,Business Transformation & Tech,RT700,Computer Software <5000,5425,Safeword Bundle,08/07/2016,420759,2990.4,NET,Civica Services Ltd,58099E
Gloucester City Council,,Business Transformation & Tech,RT700,Mobile Phones,5409,Charges May 2016,08/07/2016,419931,354.78,NET,Everything Everywhere Ltd (T-Mobile),57543S
Gloucester City Council,,Business Transformation & Tech,RT700,Telephones And Fax,5410,acct 814639 call charges MAY-JUN16,08/07/2016,420128,131.48,NET,Virgin Media Business,01869B
Gloucester City Council,,Business Transformation & Tech,RT700,Telephones And Fax,5410,Software Support,08/07/2016,420546,13609.83,NET,Omnico Group Uk Ltd,10290R
Gloucester City Council,,Cemeteries,HC300,Repair/Maint Of Monuments,3004,Various Items,08/07/2016,420775,382.85,NET,Easy Mix Ltd,01403L
Gloucester City Council,,Cemeteries,HC300,Trade Refuse Tipping Fees,6297,Various Item,08/07/2016,420847,820,NET,Allstone Sand & Gravel Aggregates Ltd,00940M
Gloucester City Council,,City Museum And Art Gallery,LM200,Advertising And Publicity,5702,Flag Kit,08/07/2016,420746,402.5,NET,Uk Feather Flags,16509A
Gloucester City Council,,City Museum And Art Gallery,LM200,Advertising And Publicity,5702,Printed Balloons,08/07/2016,420793,296,NET,Banners & Balloons,58000D
Gloucester City Council,,REDACTED,REDACTED,REDACTED,REDACTED,REDACTED,08/07/2016,REDACTED,150,NET,REDACTED,REDACTED
Gloucester City Council,,Client Revs & Bens Contract,RT240,Fees For Services Received,5350,CCN2016P11 New Burdens,08/07/2016,420705,10963.99,NET,Civica Uk Ltd,10841X
Gloucester City Council,,Contact Centre,RB300,Operational Equipment <5000,5012,Chair,08/07/2016,420794,179,NET,Cotswold Business Supplies,10835S
Gloucester City Council,,Contact Centre,RB300,Stationery,5302,Paper,08/07/2016,420758,523.15,NET,Premier Paper Group Ltd,09166Y
Gloucester City Council,,Contact Centre,RB300,Stationery,5302,Sationary,08/07/2016,420760,62.99,NET,Lyreco Uk Ltd,11746G
Gloucester City Council,,Contact Centre,RB300,Stationery,5302,Stationary,08/07/2016,420761,97.14,NET,Lyreco Uk Ltd,11746G
Gloucester City Council,,Contact Centre,RB300,Uniforms,5201,Clothes,08/07/2016,420776,94.4,NET,Meltemi Company Clothing Limited,54572N
Gloucester City Council,,Crematorium,HC200,Memorial Plaques,5053,Plaques,08/07/2016,420774,669,NET,Arkell & Hurcombe,59812T
Gloucester City Council,,Crematorium,HC200,"Seeds, Trees, Plants, Shrubs",3028,plants,08/07/2016,420790,415.21,NET,Genus Plant Sourcing,14143S
Gloucester City Council,,Development Management,PT200,Advertising And Publicity,5702,Advertisement 23/06/2016,08/07/2016,420791,140.44,NET,Local World Ltd,08556P
Gloucester City Council,,Development Management,PT200,Advertising And Publicity,5702,adverts 30/06/16,08/07/2016,420742,140.44,NET,Local World Ltd,08556P
Gloucester City Council,,Development Management,PT200,Microfilming / Cd-Rom Storage,5330,Storage June 16,08/07/2016,420749,32.52,NET,Transmedia Technology Ltd,08635T
Gloucester City Council,,Docks Complex - Catering Servs,RB110,Sale Of Council Products,9220,Food,08/07/2016,420766,54.72,NET,Janes Pantry,24500W
Gloucester City Council,,Homelessness,CH120,Rent In Advance,5516,Housing Rent In Advance & Deposit,08/07/2016,420902,468.2,NET,Ashgrove Property Services Ltd,11045G
Gloucester City Council,,Homelessness Prevention,CH122,Fees For Services Received,5350,Housing Rent In Advance & Deposit,08/07/2016,420902,670,NET,Ashgrove Property Services Ltd,11045G
Gloucester City Council,,Investment Property,RB500,Repair/Maint Of Fixed Plant,3006,Planned Maintenance,08/07/2016,420852,290,NET,Mitchells (Gloucester) Ltd,30160U
Gloucester City Council,,REDACTED,REDACTED,REDACTED,REDACTED,REDACTED,08/07/2016,REDACTED,21,NET,REDACTED,REDACTED
Gloucester City Council,,Marketing Gloucester Charges,RC433,Contracted Services,6970,Grant funding Q2 2016-17,08/07/2016,420358,43662.5,NET,Marketing Gloucester Ltd,08925E
Gloucester City Council,,Members Support,RC300,Members Training,5535,Skills Workshops,08/07/2016,420780,800,NET,Frontline Consulting Associates,15799V
Gloucester City Council,,Pollution Control,HE300,Fees For Services Received,5350,vehicle disposal,08/07/2016,420706,150,NET,Harry Buckland,16135W
Gloucester City Council,,Pollution Control,HE300,Fees For Services Received,5350,vehicle disposal,08/07/2016,420707,50,NET,Harry Buckland,16135W
Gloucester City Council,,Pollution Control,HE300,Fees For Services Received,5350,vehicle disposal,08/07/2016,420708,90,NET,Harry Buckland,16135W
Gloucester City Council,,Pollution Control,HE300,Fees For Services Received,5350,vehicle disposal,08/07/2016,420712,90,NET,Harry Buckland,16135W
Gloucester City Council,,Pollution Control,HE300,Fees For Services Received,5350,vehicle disposal,08/07/2016,420713,100,NET,Harry Buckland,16135W
Gloucester City Council,,Rehousing,CH111,Fees For Services Received,5350,Medical Report,08/07/2016,420722,20.5,NET,Dr R Watkins & Partners,59237H
Gloucester City Council,,Retail Market - Landlord,HM300,Cleaning Materials,3600,Various Items,08/07/2016,420745,126.1,NET,Aladdins Cave,16497P
Gloucester City Council,,The Arbor,HC501,Catering Provisions -Liquor,5111,Drinks,08/07/2016,420757,156.93,NET,Cellar Supplies Cheltenham Ltd,01563L
Gloucester City Council,,The Arbor,HC501,Operational Equipment <5000,5012,Ice Cube maker,08/07/2016,420763,199.99,NET,Nisbets,55372P
Gloucester City Council,,Townscape Heritage Initiative,LY145,Contract Payments,0020,Printed Banners,08/07/2016,420768,402,CAP,Squirty Ink,13834P
Gloucester City Council,,Vehicles,RS140,Fuel,4012,Fuel,08/07/2016,420826,122.36,NET,Allstar Business Solutions Ltd (Arval),06594A
Gloucester City Council,,Cleansing Services Admin,HI100,Additional Non-Tender Items,6973,240 litre & 360 litre wheeled bins,11/07/2016,420370,5858.79,NET,Enterprise (Aol) Ltd,06695G
Gloucester City Council,,Client Revs & Bens Contract,RT240,Bailiffs Fees,5368,VAT due on statutory fees,11/07/2016,420750,0,NET,Bristow & Sutor,05450M
Gloucester City Council,,Client Revs & Bens Contract,RT240,Bailiffs Fees,5368,VAT on fees collected,11/07/2016,420754,0,NET,Phoenix Commercial Collections Ltd,13435J
Gloucester City Council,,Economic Development,FP300,Business Grant,7116,DCMS Broadband Scheme,11/07/2016,420644,684.95,NET,Daisy Communication Ltd,17162H
Gloucester City Council,,Financial Services,RT200,Basic Pay - Temporary Staff,2751,Temporary staff w/e 17/06/2016,11/07/2016,420737,650.47,NET,Hays Specialist Recruitment Ltd,55516P
Gloucester City Council,,Financial Services,RT200,Basic Pay - Temporary Staff,2751,Temporary staff w/e 24/06/2016,11/07/2016,420738,527.4,NET,Hays Specialist Recruitment Ltd,55516P
Gloucester City Council,,Financial Services,RT200,Fees For Services Received,5350,insurance claim fees,11/07/2016,420764,0,NET,Wansbroughs Solicitors,55500F
Gloucester City Council,,Flood Defence Int Drain B Levy,PS111,South Glos. Drainage Board,7462,Agricultural Drainage Rates 16,11/07/2016,418875,102.34,NET,Lower Severn Drainage Board,04918R
Gloucester City Council,,Guildhall Bar And Caf�,LA210,Catering Provisions -Food,5110,Food w/e 26/06/2016,11/07/2016,420786,34.3,NET,Janes Pantry,24500W
Gloucester City Council,,Investment Property,RB500,Fire Fighting Equipment,3008,Brunswick Road,11/07/2016,419968,90,NET,Allcoopers Ltd,52921E
Gloucester City Council,,Investment Property,RB500,Fire Fighting Equipment,3008,Cemetery Road,11/07/2016,419945,15.75,NET,Allcoopers Ltd,52921E
Gloucester City Council,,Investment Property,RB500,Fire Fighting Equipment,3008,Coney Hill Cemetery,11/07/2016,419966,22.5,NET,Allcoopers Ltd,52921E
Gloucester City Council,,Investment Property,RB500,Fire Fighting Equipment,3008,Coney Hill Road,11/07/2016,419967,11.25,NET,Allcoopers Ltd,52921E
Gloucester City Council,,Investment Property,RB500,Fire Fighting Equipment,3008,Crem fire extinguishers,11/07/2016,419971,22.5,NET,Allcoopers Ltd,52921E
Gloucester City Council,,Investment Property,RB500,Fire Fighting Equipment,3008,Dry Riser takeover,11/07/2016,416562,313.47,NET,Allcoopers Ltd,52921E
Gloucester City Council,,Investment Property,RB500,Fire Fighting Equipment,3008,Eastgate Market fire extinguishers,11/07/2016,419970,40.5,NET,Allcoopers Ltd,52921E
Gloucester City Council,,Investment Property,RB500,Fire Fighting Equipment,3008,Fire Extinguishers - Eastgate St,11/07/2016,419969,4.5,NET,Allcoopers Ltd,52921E
Gloucester City Council,,Investment Property,RB500,Fire Fighting Equipment,3008,Hampden Way,11/07/2016,419944,11.25,NET,Allcoopers Ltd,52921E
Gloucester City Council,,Investment Property,RB500,Fire Fighting Equipment,3008,takeover dry risers,11/07/2016,416520,626.94,NET,Allcoopers Ltd,52921E
Gloucester City Council,,Legal Services,RS200,Fees For Services Received,5350,One Legal Costs,11/07/2016,420490,3692,NET,Tewkesbury Borough Council,43800C
Gloucester City Council,,Nms Contract,HI102,Additional Non-Tender Items,6973,Wheeled Bins,11/07/2016,420856,2963.52,NET,Enterprise (Aol) Ltd,06695G
Gloucester City Council,,Blackfriars Weddings,LA220,Catering Provisions -Liquor,5111,drinks for resale,12/07/2016,420976,277.63,NET,Cellar Supplies Cheltenham Ltd,01563L
Gloucester City Council,,Blackfriars Weddings,LA220,Catering Provisions -Liquor,5111,drinks for resale,12/07/2016,420977,551.84,NET,Cellar Supplies Cheltenham Ltd,01563L
Gloucester City Council,,Business Transformation & Tech,RT700,Internet Service Provider Fees,5429,call charges JUN16,12/07/2016,419778,1833.17,NET,Gamma Business Communications,10260A
Gloucester City Council,,Cemeteries,HC300,Basic Pay - Temporary Staff,2751,Temporary staff w/e 19/06/2016,12/07/2016,420816,439.88,NET,Premiere Employment Group Ltd,55468Z
Gloucester City Council,,Cemeteries,HC300,Basic Pay - Temporary Staff,2751,Temporary staff w/e 19/06/2016,12/07/2016,420815,439.88,NET,Premiere Employment Group Ltd,55468Z
Gloucester City Council,,Cemeteries,HC300,Maint Of Grounds - General,3030,timber,12/07/2016,420955,1034.92,NET,Millington & Ramstedt Ltd,29815S
Gloucester City Council,,Cemeteries,HC300,Maint Of Grounds - General,3030,Various Items,12/07/2016,420811,45,NET,Spaldings,48759Y
Gloucester City Council,,Cemeteries,HC300,Operational Materials,5070,Grease Gun,12/07/2016,420857,10.99,NET,Machine Mart,56123E
Gloucester City Council,,REDACTED,REDACTED,REDACTED,REDACTED,REDACTED,12/07/2016,REDACTED,115.44,NET,REDACTED,REDACTED
Gloucester City Council,,Council Streetcare Team,HI101,Window Cleaning,3610,JUN16 Eastgate Chamber window cleaning,12/07/2016,420743,130,NET,Poles Apart Window Cleaning,11636R
Gloucester City Council,,Crematorium,HC200,Book Of Memory,5055,Various Items,12/07/2016,420777,98.64,NET,Hilton Cabinet Co Ltd,21910A
Gloucester City Council,,Crematorium,HC200,Repair/Maint Of Monuments,3004,Book Tablet,12/07/2016,420781,50,NET,The Columbaria Company,55078T
Gloucester City Council,,Development Management,PT200,Basic Pay - Temporary Staff,2751,temporary staff w/e 20/06/2016,12/07/2016,420778,1404.05,NET,The Oyster Partnership Limited,14900T
Gloucester City Council,,Development Management,PT200,Fees For Services Received,5350,temporary staff w/e 20/06/2016,12/07/2016,420779,2445.9,NET,The Oyster Partnership Limited,14900T
Gloucester City Council,,Development Management,PT200,Fees For Services Received,5350,Winneycroft Lane viability,12/07/2016,420939,3000,NET,Parkwood Consultancy Services,17173C
Gloucester City Council,,Docks Complex - Telephones,RB120,Mobile Phones,5409,Charges May - Jun 16,12/07/2016,419988,332.48,NET,O2 Uk,16206Y
Gloucester City Council,,Docks Complex - Telephones,RB120,Telephones And Fax,5410,call charges JUN16,12/07/2016,419778,747.56,NET,Gamma Business Communications,10260A
Gloucester City Council,,Docks Headlease,RB538,Service Charges,3020,Docks service charge HKP JUL-SEP16,12/07/2016,420131,13936,NET,Gloucester Quays Management Ltd,13497K
Gloucester City Council,,Folk Museum,LM210,Advertising And Publicity,5702,photographer for Robot exhibition PR,12/07/2016,420989,100,NET,Moose Marketing & Pr,03952A
Gloucester City Council,,Folk Museum,LM210,Other Catering Provisions,5112,drinks for resale,12/07/2016,420985,47.69,NET,Ukv Solutions Ltd,14864V
Gloucester City Council,,Folk Museum,LM210,Publications For Sale,5064,Various Items,12/07/2016,420769,214.8,NET,Ashwood & Company,51123D
Gloucester City Council,,Guildhall Bar And Caf�,LA210,Catering Provisions -Food,5110,Food w/e 19/06/2016,12/07/2016,420488,27.7,NET,Janes Pantry,24500W
Gloucester City Council,,Guildhall Cinema,LA202,Hire Of Equipment,5020,film transport JUL16,12/07/2016,420975,219.59,NET,Nft Logistics Ltd,13505N
Gloucester City Council,,REDACTED,REDACTED,REDACTED,REDACTED,REDACTED,12/07/2016,REDACTED,72,NET,REDACTED,REDACTED
Gloucester City Council,,Health And Safety,HD300,Hospitality,5122,function room hire H&S group,12/07/2016,420984,67.4,NET,Aspire Sports & Cultural Trust,08135V
Gloucester City Council,,REDACTED,REDACTED,REDACTED,REDACTED,REDACTED,12/07/2016,REDACTED,400,NET,REDACTED,REDACTED
Gloucester City Council,,REDACTED,REDACTED,REDACTED,REDACTED,REDACTED,12/07/2016,REDACTED,370,NET,REDACTED,REDACTED
Gloucester City Council,,Homelessness Prevention,CH122,Basic Pay - Temporary Staff,2751,temporary staff w/e 26/06/2016,12/07/2016,420751,909.09,NET,Venn Group Ltd,04339P
Gloucester City Council,,Investment Property,RB500,Consultants Fees,5349,BENTINK HOUSE MGMT FEE JAN-MAR16,12/07/2016,419326,137.5,NET,Alder King,02367D
Gloucester City Council,,Investment Property,RB500,Consultants Fees,5349,KINGS HOUSE MGMT FE JAN-MAR16,12/07/2016,419325,340.13,NET,Alder King,02367D
Gloucester City Council,,Kings Quarter,RY146,Contract Payments,0020,Grosvenor House demolition works,12/07/2016,420973,67584.38,CAP,Wye Valley Demolition Ltd,07242C
Gloucester City Council,,Kings Quarter,RY146,Contract Payments,0020,Grosvenor House demolition works,12/07/2016,420974,17757.88,CAP,Wye Valley Demolition Ltd,07242C
Gloucester City Council,,Matson & Robinswood Play S106,LY151,Contract Payments,0020,Various Items,12/07/2016,420817,880,CAP,Wybone Limited,13540L
Gloucester City Council,,Meet & Greet,FP309,Advertising And Publicity,5702,Half Page Advert,12/07/2016,420747,100,NET,Diversified Business Communications Uk Ltd,15016R
Gloucester City Council,,Printing,RP103,Printing,5300,Regen eration & Economic Development strategy booklets,12/07/2016,420986,1106,NET,Alpha Colour Printers Ltd,00945B
Gloucester City Council,,Registration Of Electors,RS400,Fees For Services Received,5350,Rent for polling station,12/07/2016,420458,450,NET,Longlevens Rfc Ltd,02805A
Gloucester City Council,,Southgate Moorings,RB537,Service Charges,3020,Docks s/c Southgate car park JUL-SEP16,12/07/2016,420130,3000,NET,Gloucester Quays Management Ltd,13497K
Gloucester City Council,,The Arbor,HC501,Catering Provisions -Food,5110,Food w/e 19/06/2016,12/07/2016,420487,122.94,NET,Janes Pantry,24500W
Gloucester City Council,,The Arbor,HC501,Catering Provisions -Food,5110,Food w/e 26/06/2016,12/07/2016,420787,139.45,NET,Janes Pantry,24500W
Gloucester City Council,,REDACTED,REDACTED,REDACTED,REDACTED,REDACTED,12/07/2016,REDACTED,5250,CAP,REDACTED,REDACTED
Gloucester City Council,,Cemeteries,HC300,Basic Pay - Temporary Staff,2751,temporary staff w/e 3/7/16,13/07/2016,420961,439.88,NET,Premiere Employment Group Ltd,55468Z
Gloucester City Council,,Cemeteries,HC300,Basic Pay - Temporary Staff,2751,temporary staff w/e 3/7/16,13/07/2016,420962,439.88,NET,Premiere Employment Group Ltd,55468Z
Gloucester City Council,,City Museum And Art Gallery,LM200,Publications For Sale,5064,Various Items,13/07/2016,420823,634.4,NET,Wild And Wolf Ltd,15010D
Gloucester City Council,,Crematorium,HC200,Repair/Maint Of Monuments,3004,Book tablet,13/07/2016,420971,100,NET,The Columbaria Company,55078T
Gloucester City Council,,Development Management,PT200,Fees For Services Received,5350,temporary staff w/c 27/6/16,13/07/2016,420969,2402.39,NET,The Oyster Partnership Limited,14900T
Gloucester City Council,,REDACTED,REDACTED,REDACTED,REDACTED,REDACTED,13/07/2016,REDACTED,825,NET,REDACTED,REDACTED
Gloucester City Council,,REDACTED,REDACTED,REDACTED,REDACTED,REDACTED,13/07/2016,REDACTED,368.2,NET,REDACTED,REDACTED
Gloucester City Council,,REDACTED,REDACTED,REDACTED,REDACTED,REDACTED,13/07/2016,REDACTED,531.68,NET,REDACTED,REDACTED
Gloucester City Council,,REDACTED,REDACTED,REDACTED,REDACTED,REDACTED,13/07/2016,REDACTED,400,NET,REDACTED,REDACTED
Gloucester City Council,,REDACTED,REDACTED,REDACTED,REDACTED,REDACTED,13/07/2016,REDACTED,400,NET,REDACTED,REDACTED
Gloucester City Council,,Tic Stamp Sales,LT102,Postages,5400,International Postcard Stamp,13/07/2016,420972,190,NET,Universal Mail United Kingdom Ltd,14283Y
Gloucester City Council,,Blackfriars,LA609,Security Services Fees,5351,Door Staff June 16,14/07/2016,420850,952.5,NET,Nsgl Ltd,15246Y
Gloucester City Council,,Cemeteries,HC300,Trade Refuse Tipping Fees,6297,Various Items,14/07/2016,420846,640,NET,Allstone Sand & Gravel Aggregates Ltd,00940M
Gloucester City Council,,REDACTED,REDACTED,REDACTED,REDACTED,REDACTED,14/07/2016,REDACTED,385,NET,REDACTED,REDACTED
Gloucester City Council,,Disabled Facilities Grants,CY013,Disabled Facility Grants,0074,Disabled facilities grant - MDF5165,14/07/2016,421344,8291.94,CAP,Mears Home Improvement Ltd,00096G
Gloucester City Council,,Disabled Facilities Grants,CY013,Disabled Facility Grants,0074,disabled facilities grant - MDF5128,14/07/2016,421346,3734.28,CAP,Mears Home Improvement Ltd,00096G
Gloucester City Council,,Disabled Facilities Grants,CY013,Disabled Facility Grants,0074,disabled facilities grant - MDF5193,14/07/2016,421345,5467.9,CAP,Mears Home Improvement Ltd,00096G
Gloucester City Council,,REDACTED,REDACTED,REDACTED,REDACTED,REDACTED,14/07/2016,REDACTED,100,NET,REDACTED,REDACTED
Gloucester City Council,,REDACTED,REDACTED,REDACTED,REDACTED,REDACTED,14/07/2016,REDACTED,0,NET,REDACTED,REDACTED
Gloucester City Council,,Guildhall Events,LA200,Security Services Fees,5351,Door Staff June 16,14/07/2016,420850,917,NET,Nsgl Ltd,15246Y
Gloucester City Council,,REDACTED,REDACTED,REDACTED,REDACTED,REDACTED,14/07/2016,REDACTED,3240,NET,REDACTED,REDACTED
Gloucester City Council,,REDACTED,REDACTED,REDACTED,REDACTED,REDACTED,14/07/2016,REDACTED,-405,NET,REDACTED,REDACTED
Gloucester City Council,,REDACTED,REDACTED,REDACTED,REDACTED,REDACTED,14/07/2016,REDACTED,110,NET,REDACTED,REDACTED
Gloucester City Council,,REDACTED,REDACTED,REDACTED,REDACTED,REDACTED,14/07/2016,REDACTED,40,NET,REDACTED,REDACTED
Gloucester City Council,,Head Of Regeneration & Eco Dev,GO102,Fees For Services Received,5350,HCA funding,14/07/2016,421351,127416.35,NET,Rokeby Merchant Developments (Gloucester) Ltd,17171G
Gloucester City Council,,Kings Quarter,RY146,Contract Payments,0020,New Bus Station works - Payment in Advance,14/07/2016,417270,167044.48,CAP,Bt Openreach,06042Y
Gloucester City Council,,REDACTED,REDACTED,REDACTED,REDACTED,REDACTED,14/07/2016,REDACTED,140,NET,REDACTED,REDACTED
Gloucester City Council,,Rehousing,CH111,Fees For Services Received,5350,medical report,14/07/2016,420238,17.08,NET,Gloucester Health Access Centre,11611H
Gloucester City Council,,Shopmobility,PE200,Maintenance Of Equipment,5030,battery chargers,14/07/2016,421080,416.67,NET,Dexco T/A Ableworld Gloucester Ltd,14977E
Gloucester City Council,,Statutory Testing,RS310,Legionella,3018,JUN-AUG16 domestic monitoring,14/07/2016,420980,3146.25,NET,Kingfisher Environmental Services Ltd,04738V
Gloucester City Council,,Tic Theatre Ticket Sales,LT107,Materials For Sale,5080,Ticket Sales,14/07/2016,421338,10,NET,Spaniel In The Works Theatre Company,10588K
Gloucester City Council,,Tic Theatre Ticket Sales,LT107,Materials For Sale,5080,Ticket Sales - Audio Talks,14/07/2016,421336,7,NET,Gloucester Civic Trust (St Michaels Tower),07484Z
Gloucester City Council,,Tic Theatre Ticket Sales,LT107,Materials For Sale,5080,Ticket Sales - City Walking Tours,14/07/2016,421337,68,NET,Gloucester Civic Trust - Tour Account,08084L
Gloucester City Council,,Tic Theatre Ticket Sales,LT107,Materials For Sale,5080,Ticket Sales - Spotlight,14/07/2016,421339,674,NET,Kings Theatre,54213X
Gloucester City Council,,Tic Theatre Ticket Sales,LT107,Materials For Sale,5080,Ticket Sales - June 16,14/07/2016,421340,380,NET,Linton Music Festival,05304A
Gloucester City Council,,Tic Theatre Ticket Sales,LT107,Other Minor Income,9900,Ticket Sales - City Walking Tours,14/07/2016,421337,-0.85,NET,Gloucester Civic Trust - Tour Account,08084L
Gloucester City Council,,Tic Theatre Ticket Sales,LT107,Sale Of Goods And Services,9230,Ticket Sales,14/07/2016,421338,-0.83,NET,Spaniel In The Works Theatre Company,10588K
Gloucester City Council,,Tic Theatre Ticket Sales,LT107,Sale Of Goods And Services,9230,Ticket Sales - Audio Talks,14/07/2016,421336,-1.67,NET,Gloucester Civic Trust (St Michaels Tower),07484Z
Gloucester City Council,,Tic Theatre Ticket Sales,LT107,Sale Of Goods And Services,9230,Ticket Sales - City Walking Tours,14/07/2016,421337,-2.83,NET,Gloucester Civic Trust - Tour Account,08084L
Gloucester City Council,,Tic Theatre Ticket Sales,LT107,Sale Of Goods And Services,9230,Ticket Sales - Spotlight,14/07/2016,421339,-56.17,NET,Kings Theatre,54213X
Gloucester City Council,,Tic Theatre Ticket Sales,LT107,Sale Of Goods And Services,9230,Ticket Sales - June 16,14/07/2016,421340,-31.67,NET,Linton Music Festival,05304A
Gloucester City Council,,Aspire Admin Charges,LC105,Contracted Services,6970,JUL16 management fees,15/07/2016,421043,38125.58,NET,Aspire Sports & Cultural Trust,08135V
Gloucester City Council,,Aspire Admin Charges,LC105,Other Minor Income,9900,bailiff receipts Apr-Jun16,15/07/2016,421401,938.4,NET,Aspire Sports & Cultural Trust,08135V
Gloucester City Council,,Aspire Admin Charges,LC105,Security Services Fees,5351,Services August 2016,15/07/2016,421332,184.94,NET,G4s Cash Solutions (Uk) Ltd,04290V
Gloucester City Council,,Asset Management,RS300,Basic Pay - Temporary Staff,2751,consultancy fees JUN16,15/07/2016,421083,8000,NET,Ardley Associates,09369F
Gloucester City Council,,Blackfriars,LA609,Hire Of Equipment,5020,furniture hire,15/07/2016,421066,58,NET,Valley Furniture Hire Ltd,08324P
Gloucester City Council,,Blackfriars Weddings,LA220,Hire Of Equipment,5020,Furniture Hire,15/07/2016,421246,189.6,NET,Valley Furniture Hire Ltd,08324P
Gloucester City Council,,Business Transformation & Tech,RT700,Computer Software Maintenance,5427,CCN030 redstor backup,15/07/2016,421169,36837.48,NET,Civica Uk Ltd,10841X
Gloucester City Council,,Business Transformation & Tech,RT700,Internet Service Provider Fees,5429,Charges Jul - Aug 2016,15/07/2016,421312,30,NET,Virgin Media Payments Ltd,09376J
Gloucester City Council,,Business Transformation & Tech,RT700,Internet Service Provider Fees,5429,charges Jun-Jul 16 Cllr James,15/07/2016,421210,30,NET,Virgin Media Payments Ltd,09376J
Gloucester City Council,,Cctv Revenue Budget,FP501,Security Equipment Serv/Repair,3038,CCTV maintenance,15/07/2016,421086,100,NET,Eurolink Security & Technology Group,05166M
Gloucester City Council,,Cemeteries,HC300,Purch Vehicles/M. Plant <5000,4000,parts,15/07/2016,421334,92.29,NET,T H White Ltd,58324X
Gloucester City Council,,Cemeteries,HC300,Routine R And M - Vehicles,4011,chainsaw,15/07/2016,421055,208.33,NET,Garden Machinery Gloucester,55641K
Gloucester City Council,,Cemeteries,HC300,Routine R And M - Vehicles,4011,parts,15/07/2016,421304,202.79,NET,Garden Machinery Gloucester,55641K
Gloucester City Council,,Cems/Crems Admin,HC100,Security Services Fees,5351,Services August 2016,15/07/2016,421332,105.42,NET,G4s Cash Solutions (Uk) Ltd,04290V
Gloucester City Council,,City Museum And Art Gallery,LM200,Advertising And Publicity,5702,bunting,15/07/2016,421115,70.99,NET,Kreative Bunting Ltd,16498D
Gloucester City Council,,City Museum And Art Gallery,LM200,Security Services Fees,5351,Services August 2016,15/07/2016,421332,92.47,NET,G4s Cash Solutions (Uk) Ltd,04290V
Gloucester City Council,,City Museum Catering,LM202,Catering Provisions -Food,5110,Milk,15/07/2016,421315,4.76,NET,Total Produce Gloucester,12645E
Gloucester City Council,,City Museum Catering,LM202,Catering Provisions -Food,5110,Milk,15/07/2016,421316,7.14,NET,Total Produce Gloucester,12645E
Gloucester City Council,,City Museum Catering,LM202,Catering Provisions -Food,5110,Milk,15/07/2016,421317,2.38,NET,Total Produce Gloucester,12645E
Gloucester City Council,,City Museum Catering,LM202,Catering Provisions -Food,5110,Milk,15/07/2016,421319,4.76,NET,Total Produce Gloucester,12645E
Gloucester City Council,,City Museum Catering,LM202,Catering Provisions -Food,5110,Milk,15/07/2016,421320,4.76,NET,Total Produce Gloucester,12645E
Gloucester City Council,,City Museum Catering,LM202,Catering Provisions -Food,5110,Milk,15/07/2016,421321,4.76,NET,Total Produce Gloucester,12645E
Gloucester City Council,,Civic Admin And Hospitality,RC210,Hire Of Taxis,4053,civic chauffeuring 11/4/16 & 12/6/16,15/07/2016,421360,225,NET,Chris Hall Chauffeuring,11660U
Gloucester City Council,,Client Revs & Bens Contract,RT240,Bailiffs Fees,5368,VAT only invoice,15/07/2016,420960,0,NET,Bristow & Sutor,05450M
Gloucester City Council,,Client Revs & Bens Contract,RT240,Fees For Services Received,5350,arrest warrants,15/07/2016,421098,45,NET,Assevarate Ltd,11749A
Gloucester City Council,,Client Revs & Bens Contract,RT240,Fees For Services Received,5350,arrest warrants,15/07/2016,421099,45,NET,Assevarate Ltd,11749A
Gloucester City Council,,Client Revs & Bens Contract,RT240,Fees For Services Received,5350,arrest warrants,15/07/2016,421100,120,NET,Assevarate Ltd,11749A
Gloucester City Council,,Contact Centre,RB300,Basic Pay - Temporary Staff,2751,temporary staff,15/07/2016,421203,548.68,NET,One To One Recruitment,04752H
Gloucester City Council,,Contact Centre,RB300,Other Minor Supplies Services,5590,Out of hours monitoring,15/07/2016,421096,335.54,NET,Worcestershire Telecare,16419C
Gloucester City Council,,Contact Centre,RB300,Publications,5060,newspapers,15/07/2016,421052,169.75,NET,Ymk Supermarket,55281U
Gloucester City Council,,Contact Centre,RB300,Stationery,5302,Staionary,15/07/2016,421252,13.47,NET,Lyreco Uk Ltd,11746G
Gloucester City Council,,Contact Centre,RB300,Stationery,5302,Stationary,15/07/2016,421253,25.19,NET,Lyreco Uk Ltd,11746G
Gloucester City Council,,Contact Centre,RB300,Stationery,5302,Stationary,15/07/2016,421254,52.25,NET,Lyreco Uk Ltd,11746G
Gloucester City Council,,Contact Centre,RB300,Stationery,5302,Stationary,15/07/2016,421255,49.24,NET,Lyreco Uk Ltd,11746G
Gloucester City Council,,Contact Centre,RB300,Stationery,5302,stationery,15/07/2016,421041,57.43,NET,Lyreco Uk Ltd,11746G
Gloucester City Council,,Contact Centre,RB300,Uniforms,5201,workwear,15/07/2016,421082,60.5,NET,Meltemi Company Clothing Limited,54572N
Gloucester City Council,,Council Streetcare Team,HI101,Fees For Services Received,5350,Glevum Court Play Area Inspections,15/07/2016,421251,250,NET,Greenfields Garden Services Ltd,48130G
Gloucester City Council,,Council Streetcare Team,HI101,Fees For Services Received,5350,Grass Cutting,15/07/2016,421249,237,NET,Greenfields Garden Services Ltd,48130G
Gloucester City Council,,Council Streetcare Team,HI101,Fees For Services Received,5350,Grass Cutting,15/07/2016,421250,135,NET,Greenfields Garden Services Ltd,48130G
Gloucester City Council,,Countryside Unit,LP201,Livestock Foodstuff,5841,replacement tags,15/07/2016,421064,2.5,NET,Allflex Europe (Uk) Ltd,13351S
Gloucester City Council,,Countryside Unit,LP201,Livestock Foodstuff,5841,tags,15/07/2016,421065,14.85,NET,Allflex Europe (Uk) Ltd,13351S
Gloucester City Council,,Crematorium,HC200,Memorial Plaques,5053,plaque,15/07/2016,421053,200,NET,Steel & Stone (York),57204U
Gloucester City Council,,Crematorium,HC200,Memorial Plaques,5053,plaque,15/07/2016,421054,218,NET,Steel & Stone (York),57204U
Gloucester City Council,,Crematorium,HC200,Memorial Plaques,5053,plaque,15/07/2016,421056,215,NET,Steel & Stone (York),57204U
Gloucester City Council,,Crematorium,HC200,"Seeds, Trees, Plants, Shrubs",3028,plants,15/07/2016,421224,396,NET,REDACTED,REDACTED
Gloucester City Council,,Crematorium,HC200,"Seeds, Trees, Plants, Shrubs",3028,plants,15/07/2016,421225,660,NET,REDACTED,REDACTED
Gloucester City Council,,REDACTED,REDACTED,REDACTED,REDACTED,REDACTED,15/07/2016,REDACTED,1129.5,NET,REDACTED,REDACTED
Gloucester City Council,,Docks Complex - Catering Servs,RB110,Catering Provisions -Food,5110,food,15/07/2016,421257,4.58,NET,Janes Pantry,24500W
Gloucester City Council,,Docks Complex - Catering Servs,RB110,Catering Provisions -Food,5110,food,15/07/2016,421258,9.02,NET,Janes Pantry,24500W
Gloucester City Council,,Docks Complex - Catering Servs,RB110,Catering Provisions -Food,5110,food,15/07/2016,421259,20.79,NET,Janes Pantry,24500W
Gloucester City Council,,Docks Complex - Catering Servs,RB110,Catering Provisions -Food,5110,food,15/07/2016,421261,11.13,NET,Janes Pantry,24500W
Gloucester City Council,,Docks Complex - Services,RB100,Security Services Fees,5351,Services August 2016,15/07/2016,421332,276.2,NET,G4s Cash Solutions (Uk) Ltd,04290V
Gloucester City Council,,Docks Complex - Telephones,RB120,Mobile Phones,5409,call charges JUL16,15/07/2016,421356,1039.21,NET,O2 Uk,16206Y
Gloucester City Council,,Docks Complex - Telephones,RB120,Mobile Phones,5409,call charges JUL16,15/07/2016,421357,336.58,NET,O2 Uk,16206Y
Gloucester City Council,,Docks Complex - Telephones,RB120,Mobile Phones,5409,hardware - Samsung Galaxy A3 x 16,15/07/2016,421361,1046.56,NET,O2 Uk,16206Y
Gloucester City Council,,Financial Services,RT200,Fees For Services Received,5350,hardware items,15/07/2016,421353,1361.7,NET,O2 Uk,16206Y
Gloucester City Council,,Financial Services,RT200,Vocational Training,2970,LGA conference delegate,15/07/2016,421062,145,NET,Cipfa Business Limited,09260F
Gloucester City Council,,Flooding And Drainage,HE306,Other Minor Supplies Services,5590,knotweed spraying - Horsbere Meadow,15/07/2016,421388,45,NET,Greenfields Garden Services Ltd,48130G
Gloucester City Council,,Folk Museum,LM210,Exhibits And Collections,5038,goods for resale,15/07/2016,421044,1185,NET,Proportion London Ltd,16484R
Gloucester City Council,,Folk Museum,LM210,Security Services Fees,5351,Services August 2016,15/07/2016,421332,92.47,NET,G4s Cash Solutions (Uk) Ltd,04290V
Gloucester City Council,,Gloucester Guildhall,LA100,Licences,5703,business radio licence,15/07/2016,421212,150,NET,Ofcom,02769C
Gloucester City Council,,Gloucester Guildhall,LA100,Security Services Fees,5351,Services August 2016,15/07/2016,421332,92.47,NET,G4s Cash Solutions (Uk) Ltd,04290V
Gloucester City Council,,REDACTED,REDACTED,REDACTED,REDACTED,REDACTED,15/07/2016,REDACTED,70,NET,REDACTED,REDACTED
Gloucester City Council,,REDACTED,REDACTED,REDACTED,REDACTED,REDACTED,15/07/2016,REDACTED,50,NET,REDACTED,REDACTED
Gloucester City Council,,REDACTED,REDACTED,REDACTED,REDACTED,REDACTED,15/07/2016,REDACTED,110,NET,REDACTED,REDACTED
Gloucester City Council,,Guildhall Bar And Caf�,LA210,Catering Provisions -Food,5110,food,15/07/2016,421230,75.53,NET,Woodward Foodservice,10714F
Gloucester City Council,,Guildhall Bar And Caf�,LA210,Catering Provisions -Food,5110,goods for resale,15/07/2016,421057,72,NET,Winstones Ice Cream Ltd,56347D
Gloucester City Council,,REDACTED,REDACTED,REDACTED,REDACTED,REDACTED,15/07/2016,REDACTED,100,NET,REDACTED,REDACTED
Gloucester City Council,,REDACTED,REDACTED,REDACTED,REDACTED,REDACTED,15/07/2016,REDACTED,43.75,NET,REDACTED,REDACTED
Gloucester City Council,,Guildhall Events,LA200,Advertising And Publicity,5702,advert for Underground Festival,15/07/2016,421090,500,NET,Sonic Media Group,15761X
Gloucester City Council,,Guildhall Events,LA200,Advertising And Publicity,5702,adverts,15/07/2016,421191,180,NET,Local World Ltd,08556P
Gloucester City Council,,Guildhall Events,LA200,Fees For Services Received,5350,newspapers,15/07/2016,421354,89.17,NET,W H Smith Ltd,40860M
Gloucester City Council,,REDACTED,REDACTED,REDACTED,REDACTED,REDACTED,15/07/2016,REDACTED,50,NET,REDACTED,REDACTED
Gloucester City Council,,REDACTED,REDACTED,REDACTED,REDACTED,REDACTED,15/07/2016,REDACTED,120,NET,REDACTED,REDACTED
Gloucester City Council,,Homelessness,CH120,Fees For Services Received,5350,Medical Report,15/07/2016,420765,20.5,NET,Rosebank Health,03041E
Gloucester City Council,,Investment Property,RB500,General Repair/Maint Buildings,3000,"Engineers - flag poles, north warehouse",15/07/2016,420549,780,NET,J M Grail (General Engineering) Ltd,03204A
Gloucester City Council,,Registration Of Electors,RS400,Fees For Services Received,5350,deliver & collect polling booths,15/07/2016,421178,1150,NET,Herbert Davis Removals,16446Z
Gloucester City Council,,Registration Of Electors,RS400,Fees For Services Received,5350,Election Count,15/07/2016,421235,96,NET,Aspire Sports & Cultural Trust,08135V
Gloucester City Council,,Registration Of Electors,RS400,Fees For Services Received,5350,Hall Hire - Elections,15/07/2016,421237,256,NET,Quedgeley Village Hall,00736N
Gloucester City Council,,Registration Of Electors,RS400,Fees For Services Received,5350,Hire Fee,15/07/2016,421244,50,NET,Old Richian Sports & Social Club,04328V
Gloucester City Council,,Registration Of Electors,RS400,Fees For Services Received,5350,Hire of centre- Elections,15/07/2016,421236,250,NET,Gl Communities,09535X
Gloucester City Council,,Registration Of Electors,RS400,Fees For Services Received,5350,Hire of hall - Elections,15/07/2016,421241,220,NET,Lonsdale Road Methodist Church,04793L
Gloucester City Council,,Registration Of Electors,RS400,Fees For Services Received,5350,Hire of Hall- elections,15/07/2016,421243,180.4,NET,The Parish Of Holy Trinity,16499B
Gloucester City Council,,Registration Of Electors,RS400,Fees For Services Received,5350,hire of OITC for referendum count,15/07/2016,421104,800,NET,Aspire Sports & Cultural Trust,08135V
Gloucester City Council,,Registration Of Electors,RS400,Fees For Services Received,5350,MOBILE PATROL INSPECTION,15/07/2016,421132,22.5,NET,Glevum Security Ltd,03249B
Gloucester City Council,,Registration Of Electors,RS400,Fees For Services Received,5350,polling staiton,15/07/2016,421187,62.97,NET,St James C Of E Junior School,10465D
Gloucester City Council,,Registration Of Electors,RS400,Fees For Services Received,5350,polling station,15/07/2016,421124,150,NET,Wotton Hall Club,08356R
Gloucester City Council,,Registration Of Electors,RS400,Fees For Services Received,5350,polling station,15/07/2016,421125,256,NET,Quedgeley Village Hall,00736N
Gloucester City Council,,Registration Of Electors,RS400,Fees For Services Received,5350,polling station,15/07/2016,421126,100,NET,St Pauls Primary School,56334N
Gloucester City Council,,Registration Of Electors,RS400,Fees For Services Received,5350,polling station,15/07/2016,421128,403,NET,Gloucester District Scouts And Hq,15488S
Gloucester City Council,,Registration Of Electors,RS400,Fees For Services Received,5350,polling station,15/07/2016,421129,61.82,NET,Meadowside Primary School,06353B
Gloucester City Council,,Registration Of Electors,RS400,Fees For Services Received,5350,polling station,15/07/2016,421130,130,NET,Heron Primary School,55582A
Gloucester City Council,,Registration Of Electors,RS400,Fees For Services Received,5350,polling station,15/07/2016,421133,180.4,NET,The Parish Of Holy Trinity,16499B
Gloucester City Council,,Registration Of Electors,RS400,Fees For Services Received,5350,polling station,15/07/2016,421149,320,NET,Abbeydale Community Association,50263V
Gloucester City Council,,Registration Of Electors,RS400,Fees For Services Received,5350,polling station,15/07/2016,421150,320,NET,St Mary De Lode Pcc,10663X
Gloucester City Council,,Registration Of Electors,RS400,Fees For Services Received,5350,polling station,15/07/2016,421151,675,NET,Hucclecote Community Association,23020B
Gloucester City Council,,Registration Of Electors,RS400,Fees For Services Received,5350,polling station,15/07/2016,421153,400,NET,St Barnabas Pcc,10480H
Gloucester City Council,,Registration Of Electors,RS400,Fees For Services Received,5350,polling station,15/07/2016,421154,140.06,NET,Linden Primary School,01427W
Gloucester City Council,,Registration Of Electors,RS400,Fees For Services Received,5350,polling station,15/07/2016,421155,400,NET,Gala Club,12236C
Gloucester City Council,,Registration Of Electors,RS400,Fees For Services Received,5350,polling station,15/07/2016,421157,120,NET,St Oswald'S Pcc,10662X
Gloucester City Council,,Registration Of Electors,RS400,Fees For Services Received,5350,polling station,15/07/2016,421158,240,NET,Gloucestershire Chinese Resource Centre,11643U
Gloucester City Council,,Registration Of Electors,RS400,Fees For Services Received,5350,polling station,15/07/2016,421159,59.28,NET,St James C Of E Junior School,10465D
Gloucester City Council,,Registration Of Electors,RS400,Fees For Services Received,5350,polling station,15/07/2016,421160,250,NET,Gl Communities,09535X
Gloucester City Council,,Registration Of Electors,RS400,Fees For Services Received,5350,polling station,15/07/2016,421161,260,NET,St Georges Centre,09770A
Gloucester City Council,,Registration Of Electors,RS400,Fees For Services Received,5350,polling station,15/07/2016,421163,250,NET,Together In Matson,53760RV
Gloucester City Council,,Registration Of Electors,RS400,Fees For Services Received,5350,polling station,15/07/2016,421164,218,NET,Hucclecote Guiding Parent Support Group,10752D
Gloucester City Council,,Registration Of Electors,RS400,Fees For Services Received,5350,polling station,15/07/2016,421165,403,NET,Gloucester District Scouts And Hq,15488S
Gloucester City Council,,Registration Of Electors,RS400,Fees For Services Received,5350,polling station,15/07/2016,421173,396.75,NET,Quedgeley Parish Council,48506G
Gloucester City Council,,Registration Of Electors,RS400,Fees For Services Received,5350,polling station,15/07/2016,421174,396.75,NET,Quedgeley Parish Council,48506G
Gloucester City Council,,Registration Of Electors,RS400,Fees For Services Received,5350,polling station,15/07/2016,421175,384,NET,Quedgeley Parish Council,48506G
Gloucester City Council,,Registration Of Electors,RS400,Fees For Services Received,5350,polling station,15/07/2016,421176,384,NET,Quedgeley Parish Council,48506G
Gloucester City Council,,Registration Of Electors,RS400,Fees For Services Received,5350,polling station,15/07/2016,421179,218,NET,Hucclecote Guiding Parent Support Group,10752D
Gloucester City Council,,Registration Of Electors,RS400,Fees For Services Received,5350,polling station,15/07/2016,421180,250,NET,Barnwood Pcc,57601D
Gloucester City Council,,Registration Of Electors,RS400,Fees For Services Received,5350,polling station,15/07/2016,421182,675,NET,Hucclecote Community Association,23020B
Gloucester City Council,,Registration Of Electors,RS400,Fees For Services Received,5350,polling station,15/07/2016,421183,400,NET,St Barnabas Pcc,10480H
Gloucester City Council,,Registration Of Electors,RS400,Fees For Services Received,5350,polling station,15/07/2016,421184,320,NET,St Mary De Lode Pcc,10663X
Gloucester City Council,,Registration Of Electors,RS400,Fees For Services Received,5350,polling station,15/07/2016,421185,400,NET,Gala Club,12236C
Gloucester City Council,,Registration Of Electors,RS400,Fees For Services Received,5350,polling station,15/07/2016,421186,320,NET,Abbeydale Community Association,50263V
Gloucester City Council,,Registration Of Electors,RS400,Fees For Services Received,5350,polling station,15/07/2016,421189,62.97,NET,St Pauls Primary School,56334N
Gloucester City Council,,Registration Of Electors,RS400,Fees For Services Received,5350,polling station,15/07/2016,421190,250,NET,Together In Matson,53760RV
Gloucester City Council,,Registration Of Electors,RS400,Fees For Services Received,5350,polling station,15/07/2016,421192,62.97,NET,Meadowside Primary School,06353B
Gloucester City Council,,Registration Of Electors,RS400,Fees For Services Received,5350,polling station,15/07/2016,421195,325,NET,Tuffley Community Association,44750G
Gloucester City Council,,Registration Of Electors,RS400,Fees For Services Received,5350,polling station,15/07/2016,421196,360,NET,Hempsted Village Hall,55138A
Gloucester City Council,,Registration Of Electors,RS400,Fees For Services Received,5350,polling station,15/07/2016,421197,694.8,NET,Gloucester Rugby Football Club,49396D
Gloucester City Council,,Registration Of Electors,RS400,Fees For Services Received,5350,polling station,15/07/2016,421198,694.8,NET,Gloucester Rugby Football Club,49396D
Gloucester City Council,,Registration Of Electors,RS400,Fees For Services Received,5350,polling station,15/07/2016,421199,250,NET,Barnwood Pcc,57601D
Gloucester City Council,,Registration Of Electors,RS400,Fees For Services Received,5350,polling station,15/07/2016,421200,62.97,NET,Tredworth Junior School,03118U
Gloucester City Council,,Registration Of Electors,RS400,Fees For Services Received,5350,polling station,15/07/2016,421201,300,NET,Podsmead Community Association,03240W
Gloucester City Council,,Registration Of Electors,RS400,Fees For Services Received,5350,polling station,15/07/2016,421239,62.97,NET,Abbeymead Primary School,12017T
Gloucester City Council,,Registration Of Electors,RS400,Fees For Services Received,5350,Polling station charges,15/07/2016,421238,62.97,NET,Abbeymead Primary School,12017T
Gloucester City Council,,Registration Of Electors,RS400,Fees For Services Received,5350,Polling station charges,15/07/2016,421240,62.97,NET,Tredworth Junior School,03118U
Gloucester City Council,,Registration Of Electors,RS400,Fees For Services Received,5350,Polling Station Fee,15/07/2016,421245,240,NET,Gloucestershire Chinese Resource Centre,11643U
Gloucester City Council,,Registration Of Electors,RS400,Fees For Services Received,5350,referendum polling station,15/07/2016,421194,300,NET,Podsmead Community Association,03240W
Gloucester City Council,,REDACTED,REDACTED,REDACTED,REDACTED,REDACTED,15/07/2016,REDACTED,120,NET,REDACTED,REDACTED
Gloucester City Council,,REDACTED,REDACTED,REDACTED,REDACTED,REDACTED,15/07/2016,REDACTED,200,NET,REDACTED,REDACTED
Gloucester City Council,,Registration Of Electors,RS400,Postages,5400,acct 0870585031 post,15/07/2016,421105,94,NET,Royal Mail S.Wales & South West,35830S
Gloucester City Council,,Registration Of Electors,RS400,Postages,5400,post,15/07/2016,421219,1013.93,NET,Royal Mail S.Wales & South West,35830S
Gloucester City Council,,Registration Of Electors,RS400,Postages,5400,post,15/07/2016,421220,1038.6,NET,Royal Mail S.Wales & South West,35830S
Gloucester City Council,,Registration Of Electors,RS400,Postages,5400,post,15/07/2016,421221,557.52,NET,Royal Mail S.Wales & South West,35830S
Gloucester City Council,,Registration Of Electors,RS400,Postages,5400,response plus acct 087055038,15/07/2016,421215,2943.54,NET,Royal Mail S.Wales & South West,35830S
Gloucester City Council,,Registration Of Electors,RS400,Postages,5400,response plus post acct 0870585036,15/07/2016,421218,1285.07,NET,Royal Mail S.Wales & South West,35830S
Gloucester City Council,,Registration Of Electors,RS400,Postages,5400,response plus service 0870585086,15/07/2016,421216,1571.25,NET,Royal Mail S.Wales & South West,35830S
Gloucester City Council,,Registration Of Electors,RS400,Postages,5400,Response Plus Services,15/07/2016,420822,266.09,NET,Royal Mail S.Wales & South West,35830S
Gloucester City Council,,Rehousing,CH111,Fees For Services Received,5350,Medical Report,15/07/2016,420819,20.5,NET,Rosebank Health,03041E
Gloucester City Council,,Retail Market - Landlord,HM300,Radio Equipment,5416,Membership 16/17,15/07/2016,421233,365,NET,Gloucester City Safe,14709J
Gloucester City Council,,Retail Market - Landlord,HM300,Trade Refuse Collection,3630,JUN16 food waste bins,15/07/2016,421112,150,NET,B & S Pointon Ltd,06253G
Gloucester City Council,,Safer Stronger Communities,FP841,Other Minor Supplies Services,5590,Best Bar t shirts,15/07/2016,421087,80,NET,Leisure Lines,13017E
Gloucester City Council,,Taxi Marshalling Scheme,HL101,Taxi Marshals,5387,taxi marshalls,15/07/2016,421391,195.5,NET,Cuff Facilities Ltd,16436C
Gloucester City Council,,Taxi Marshalling Scheme,HL101,Taxi Marshals,5387,taxi marshalls,15/07/2016,421392,172.5,NET,Cuff Facilities Ltd,16436C
Gloucester City Council,,Taxi Marshalling Scheme,HL101,Taxi Marshals,5387,taxi marshalls,15/07/2016,421393,172.5,NET,Cuff Facilities Ltd,16436C
Gloucester City Council,,Taxi Marshalling Scheme,HL101,Taxi Marshals,5387,taxi marshalls,15/07/2016,421394,172.5,NET,Cuff Facilities Ltd,16436C
Gloucester City Council,,Taxi Marshalling Scheme,HL101,Taxi Marshals,5387,taxi marshalls,15/07/2016,421395,172.5,NET,Cuff Facilities Ltd,16436C
Gloucester City Council,,Taxi Marshalling Scheme,HL101,Taxi Marshals,5387,taxi marshalls,15/07/2016,421396,172.5,NET,Cuff Facilities Ltd,16436C
Gloucester City Council,,Taxi Marshalling Scheme,HL101,Taxi Marshals,5387,taxi marshalls,15/07/2016,421397,161,NET,Cuff Facilities Ltd,16436C
Gloucester City Council,,Taxi Marshalling Scheme,HL101,Taxi Marshals,5387,taxi marshalls,15/07/2016,421398,172.5,NET,Cuff Facilities Ltd,16436C
Gloucester City Council,,Taxi Marshalling Scheme,HL101,Taxi Marshals,5387,taxi marshalls,15/07/2016,421399,172.5,NET,Cuff Facilities Ltd,16436C
Gloucester City Council,,Tourism Marketing,LT100,Security Services Fees,5351,Services August 2016,15/07/2016,421332,92.47,NET,G4s Cash Solutions (Uk) Ltd,04290V
Gloucester City Council,,Vehicles,RS140,Fuel,4012,vehicle fuel,15/07/2016,421355,236.82,NET,Allstar Business Solutions Ltd (Arval),06594A
Gloucester City Council,,Blackfriars Weddings,LA220,Hire Of Equipment,5020,hire of glassware for function,18/07/2016,421524,115.6,NET,Gloucester Event Hire,56935D
Gloucester City Council,,Cemeteries,HC300,Clothing,5200,Safety Boots,18/07/2016,420783,40.82,NET,Safpro Industrial Supply Co,39190W
Gloucester City Council,,Cemeteries,HC300,Maint Of Grounds - General,3030,memorial vase,18/07/2016,421507,177.5,NET,F J Cambridge & Co Ltd,48841N
Gloucester City Council,,Cemeteries,HC300,Maint Of Grounds - General,3030,Tredworth cemetary tree works,18/07/2016,421303,520,NET,Jpu Services Ltd,11056K
Gloucester City Council,,Cemeteries,HC300,Operational Materials,5070,composted bark,18/07/2016,421111,1050,NET,Bhgs Ltd,00247K
Gloucester City Council,,Cemeteries,HC300,Purch Vehicles/M. Plant <5000,4000,safety specs,18/07/2016,421035,29.5,NET,Safpro Industrial Supply Co,39190W
Gloucester City Council,,Client Revs & Bens Contract,RT240,Bailiffs Fees,5368,vat only invoice,18/07/2016,421493,0,NET,Bristow & Sutor,05450M
Gloucester City Council,,Contact Centre,RB300,Stationery,5302,stationery,18/07/2016,421042,61.86,NET,Lyreco Uk Ltd,11746G
Gloucester City Council,,Council Streetcare Team,HI101,Maint Of Grounds - General,3030,paint,18/07/2016,421106,95.86,NET,Ppg Architectural Coatings Uk Limited,04709C
Gloucester City Council,,Crematorium,HC200,Equipment For Sale,5050,memorial bench,18/07/2016,421067,519.99,NET,Codec Facilities Ltd,14338Y
Gloucester City Council,,Crematorium,HC200,Equipment For Sale,5050,memorial bench,18/07/2016,421167,470.82,NET,Codec Facilities Ltd,14338Y
Gloucester City Council,,Crematorium,HC200,Equipment For Sale,5050,memorial bench,18/07/2016,421168,928.32,NET,Codec Facilities Ltd,14338Y
Gloucester City Council,,Crematorium,HC200,Memorial Plaques,5053,plaque,18/07/2016,421120,107.7,NET,Treasured Memories Limited,11058H
Gloucester City Council,,Crematorium,HC200,Repair/Maint Of Fixed Plant,3006,respirator,18/07/2016,421036,155.9,NET,Safpro Industrial Supply Co,39190W
Gloucester City Council,,Crematorium,HC200,Repair/Maint Of Fixed Plant,3006,thermocouple,18/07/2016,421523,371.22,NET,Facultatieve Technologies Ltd,51210H
Gloucester City Council,,Crematorium,HC200,Repair/Maint Of Monuments,3004,Sanctum tablet,18/07/2016,421364,195,NET,The Columbaria Company,55078T
Gloucester City Council,,Development Management,PT200,Fees For Services Received,5350,temporary staff w/c 4/7/16,18/07/2016,421362,2407.9,NET,The Oyster Partnership Limited,14900T
Gloucester City Council,,Docks Complex - Telephones,RB120,Mobile Phones,5409,hardware - Galaxy J5,18/07/2016,421358,134.63,NET,O2 Uk,16206Y
Gloucester City Council,,Financial Services,RT200,Fees For Services Received,5350,vat only invoice,18/07/2016,421060,0,NET,Wansbroughs Solicitors,55500F
Gloucester City Council,,Financial Services,RT200,Fees For Services Received,5350,vat only invoice,18/07/2016,421061,0,NET,Wansbroughs Solicitors,55500F
Gloucester City Council,,Financial Services,RT200,Fees For Services Received,5350,vat only invoice,18/07/2016,421490,0,NET,Wansbroughs Solicitors,55500F
Gloucester City Council,,General Works Fund,RY203,Consultants Fees,0030,Hours June 2016,18/07/2016,421313,1197,CAP,Graham Parker Environmental Design Solutions,16390B
Gloucester City Council,,Guildhall Events,LA200,Fees For Services Received,5350,bsp lighting,18/07/2016,421101,150,NET,Connect Electrical Contracting,12405D
Gloucester City Council,,Homelessness,CH120,Advertising And Publicity,5702,adverts23 & 30 JUN16,18/07/2016,421517,418.32,NET,Local World Ltd,08556P
Gloucester City Council,,Homelessness Prevention,CH122,Fees For Services Received,5350,medical report,18/07/2016,421515,20.5,NET,Hadwen Medical Practice,59727U
Gloucester City Council,,REDACTED,REDACTED,REDACTED,REDACTED,REDACTED,18/07/2016,REDACTED,450,NET,REDACTED,REDACTED
Gloucester City Council,,Inhouse Training,EH200,Vocational Training,2970,First Aid at Work training,18/07/2016,421520,140,NET,Aspire Sports & Cultural Trust,08135V
Gloucester City Council,,Inhouse Training,EH200,Vocational Training,2970,EFAW first aid training,18/07/2016,421521,45,NET,Aspire Sports & Cultural Trust,08135V
Gloucester City Council,,Investment Property,RB500,General Repair/Maint Buildings,3000,EASTGATE MARKET MEAT WASTE ROOM CHILLER,18/07/2016,420203,206.76,NET,Mitchells (Gloucester) Ltd,30160U
Gloucester City Council,,Investment Property,RB500,General Repair/Maint Buildings,3000,Farmhouse coldroom 1 Eastgate Mkt,18/07/2016,421127,1073.99,NET,Mitchells (Gloucester) Ltd,30160U
Gloucester City Council,,Investment Property,RB500,General Repair/Maint Buildings,3000,kings square bollard unlocking,18/07/2016,421114,30,NET,Nsgl Ltd (Security Acct),12539E
Gloucester City Council,,Investment Property,RB500,General Repair/Maint Buildings,3000,Replace Filters,18/07/2016,420853,83.99,NET,Mitchells (Gloucester) Ltd,30160U
Gloucester City Council,,Investment Property,RB500,Maint Agreements - Buildings,3010,Eastgate coldroom maintenance 16-17,18/07/2016,421333,670,NET,Mitchells (Gloucester) Ltd,30160U
Gloucester City Council,,Licences,HE510,Reimbursements,5591,TEMPORARY EVENT NOTICE REFUND - WRONG AREA,18/07/2016,421532,21,NET,Joshuas Catering Ltd,16980X
Gloucester City Council,,Managing Director,RE100,Printing,5300,printing,18/07/2016,421045,47,NET,Alpha Colour Printers Ltd,00945B
Gloucester City Council,,Ranger Centre/Netheridge Wks,RY167,Contract Payments,0020,gate hooks,18/07/2016,421069,1939.12,CAP,Forest Products Ltd,08155N
Gloucester City Council,,Registration Of Electors,RS400,Postages,5400,post,18/07/2016,421217,1030.51,NET,Royal Mail S.Wales & South West,35830S
Gloucester City Council,,Rehousing,CH111,Fees For Services Received,5350,medical report,18/07/2016,421516,20.5,NET,Hadwen Medical Practice,59727U
Gloucester City Council,,Rehousing,CH111,Fees For Services Received,5350,medical report,18/07/2016,421518,20,NET,Dr R Watkins & Partners,59237H
Gloucester City Council,,Retail Market - Landlord,HM300,Operational Equipment <5000,5012,lamps,18/07/2016,421084,89.61,NET,City Electrical Factors,09325C
Gloucester City Council,,Statutory Testing,RS310,Fees For Services Received,5350,Eastgate Market emergency lighting,18/07/2016,420981,110,NET,Allcoopers Ltd,52921E
Gloucester City Council,,The Arbor,HC501,Catering Provisions -Food,5110,food,18/07/2016,421514,13.68,NET,Total Produce Gloucester,12645E
Gloucester City Council,,The Arbor,HC501,Catering Provisions -Food,5110,food,18/07/2016,421526,57.16,NET,Total Produce Gloucester,12645E
Gloucester City Council,,The Arbor,HC501,Catering Provisions -Food,5110,food,18/07/2016,421527,76.59,NET,Total Produce Gloucester,12645E
Gloucester City Council,,The Arbor,HC501,Catering Provisions -Food,5110,food,18/07/2016,421528,32.76,NET,Total Produce Gloucester,12645E
Gloucester City Council,,The Arbor,HC501,Catering Provisions -Food,5110,food,18/07/2016,421529,14.01,NET,Total Produce Gloucester,12645E
Gloucester City Council,,The Arbor,HC501,Catering Provisions -Food,5110,food,18/07/2016,421530,71.2,NET,Total Produce Gloucester,12645E
Gloucester City Council,,The Arbor,HC501,Catering Provisions -Food,5110,food,18/07/2016,421531,29.82,NET,Total Produce Gloucester,12645E
Gloucester City Council,,The Arbor,HC501,General Repair/Maint Buildings,3000,tea room replacement amplifier,18/07/2016,421506,374.5,NET,Revolution Multimedia,07880L
Gloucester City Council,,REDACTED,REDACTED,REDACTED,REDACTED,REDACTED,18/07/2016,REDACTED,176,NET,REDACTED,REDACTED
Gloucester City Council,,Tourism Marketing,LT100,Uniforms,5201,workwear,18/07/2016,421522,107.97,NET,Simon Jersey Ltd,40555W
Gloucester City Council,,Tourism Marketing,LT100,Window Cleaning,3610,JUN16 window cleaning,18/07/2016,421511,12,NET,Interserve Fs (Uk) Limited,00442K
Gloucester City Council,,Tourism Marketing,LT100,Window Cleaning,3610,May 16 window cleaning,18/07/2016,421510,24,NET,Interserve Fs (Uk) Limited,00442K
Gloucester City Council,,16 Commercial Road,RB539,Asbestos Management Plan,3003,16 Commercial Road works,19/07/2016,421525,9100,NET,Gloucester Asbestos Ltd,00496K
Gloucester City Council,,Allotments,HI104,Fees For Services Received,5350,Tredworth allotment site works,19/07/2016,419940,630,NET,T & T Howell Grounds And Tree Maintenance Ltd,15537E
Gloucester City Council,,Aspire Admin Charges,LC105,Fees For Services Received,5350,GCC staff memberships MAY16,19/07/2016,421492,522,NET,Aspire Sports & Cultural Trust,08135V
Gloucester City Council,,Aspire Admin Charges,LC105,Fees For Services Received,5350,JUN16 GCC memberships,19/07/2016,421494,522,NET,Aspire Sports & Cultural Trust,08135V
Gloucester City Council,,Blackfriars Weddings,LA220,Fees For Services Received,5350,Blackfriars cleaning,19/07/2016,421091,295,NET,Gloucester Cleaning Service,17896B
Gloucester City Council,,Cemeteries,HC300,Operational Materials,5070,gallup biograde,19/07/2016,421509,147.5,NET,Rigby Taylor Ltd,37605G
Gloucester City Council,,Civica Contract Revs & Bens,RT250,Fees For Services Received,5350,Revenues and Benefits Service August 2016,19/07/2016,420753,137797,NET,Civica Uk Ltd,10841X
Gloucester City Council,,Client Revs & Bens Contract,RT240,Bailiffs Fees,5368,VAT on fees collected,19/07/2016,421300,0,NET,Phoenix Commercial Collections Ltd,13435J
Gloucester City Council,,Client Revs & Bens Contract,RT240,Bailiffs Fees,5368,VAT on fees collected,19/07/2016,421301,0,NET,Phoenix Commercial Collections Ltd,13435J
Gloucester City Council,,Council Streetcare Team,HI101,Maint Of Grounds - General,3030,tennis court repairs,19/07/2016,421500,895,NET,Greenfields Garden Services Ltd,48130G
Gloucester City Council,,Crematorium,HC200,Equipment For Sale,5050,memorial bench,19/07/2016,421166,445.82,NET,Codec Facilities Ltd,14338Y
Gloucester City Council,,Development Management,PT200,Advertising And Publicity,5702,Advertisement 07/07/2016,19/07/2016,421305,140.44,NET,Local World Ltd,08556P
Gloucester City Council,,REDACTED,REDACTED,REDACTED,REDACTED,REDACTED,19/07/2016,REDACTED,123.3,NET,REDACTED,REDACTED
Gloucester City Council,,Guildhall Events,LA200,Artists Fees,5355,massacre festival ticket sales 21/5/16,19/07/2016,421573,456.5,NET,Gloucestershire College,09519L
Gloucester City Council,,Internal Health & Safety,EH110,Other Minor Supplies Services,5590,Docks evacchairs 16-17 service,19/07/2016,421503,145,NET,Evac+Chair International Ltd,10907S
Gloucester City Council,,Internal Health & Safety,EH110,Other Minor Supplies Services,5590,service renewal 16-17,19/07/2016,421502,90,NET,Evac+Chair International Ltd,10907S
Gloucester City Council,,Investment Property,RB500,General Repair/Maint Buildings,3000,Docks picnic bench refurbishment,19/07/2016,420727,290,NET,Furniture Recycling Project,51707U
Gloucester City Council,,National Express,LT105,Materials For Sale,5080,ticket sold on commission,19/07/2016,421495,20.65,NET,National Express Ltd,31455K
Gloucester City Council,,National Express,LT105,Materials For Sale,5080,tickets sold on commission,19/07/2016,421231,10317.25,NET,National Express Ltd,31455K
Gloucester City Council,,National Express,LT105,Sale Of Goods And Services,9230,ticket sold on commission,19/07/2016,421495,-1.89,NET,National Express Ltd,31455K
Gloucester City Council,,National Express,LT105,Sale Of Goods And Services,9230,tickets sold on commission,19/07/2016,421231,-948.57,NET,National Express Ltd,31455K
Gloucester City Council,,Nms Contract,HI102,Additional Non-Tender Items,6973,route optimisation support,19/07/2016,421491,2500,NET,Ubico Ltd,16451G
Gloucester City Council,,Printing,RP103,Printing,5300,printing,19/07/2016,421113,1118,NET,Alpha Colour Printers Ltd,00945B
Gloucester City Council,,Tic Rovercard Sales,LT101,Materials For Sale,5080,tickets sold on commission,19/07/2016,421496,1937,NET,Stagecoach Services Ltd,56554W
Gloucester City Council,,Tic Rovercard Sales,LT101,Sale Of Goods And Services,9230,tickets sold on commission,19/07/2016,421496,-161.42,NET,Stagecoach Services Ltd,56554W
Gloucester City Council,,Business Transformation & Tech,RT700,Telephones And Fax,5410,Charges May 2016,20/07/2016,419936,3959.81,NET,Gamma Business Communications,10260A
Gloucester City Council,,Cems/Crems Admin,HC100,Security Services Fees,5351,Services June 2016,20/07/2016,421328,14.11,NET,G4s Cash Solutions (Uk) Ltd,04290V
Gloucester City Council,,Civica Fod Contract,RT260,Contracted Services,6970,Civica Forest Of Dean Council contract payment,20/07/2016,421063,185076.34,NET,Civica Uk Ltd,10841X
Gloucester City Council,,Contact Centre,RB300,Basic Pay - Temporary Staff,2751,temporary staff w/e 15/7/16,20/07/2016,421601,433.84,NET,One To One Recruitment,04752H
Gloucester City Council,,Contact Centre,RB300,Postages,5400,acct 0252446000,20/07/2016,421501,1448.43,NET,Royal Mail S.Wales & South West,35830S
Gloucester City Council,,Countryside Unit,LP201,Maint Of Grounds - General,3030,Various Items,20/07/2016,421306,27.08,NET,Countrywide Farmers,55687J
Gloucester City Council,,Development Management,PT200,Advertising And Publicity,5702,adverts 14/7/16,20/07/2016,421606,163.84,NET,Local World Ltd,08556P
Gloucester City Council,,Disabled Facilities Grants,CY013,Disabled Facility Grants,0074,Disabled Facilities Grant MDF5173 final payment,20/07/2016,421614,2516.95,CAP,Mears Home Improvement Ltd,00096G
Gloucester City Council,,Docks Complex - Services,RB100,Security Services Fees,5351,Services June 2016,20/07/2016,421328,3.53,NET,G4s Cash Solutions (Uk) Ltd,04290V
Gloucester City Council,,Emergency Planning,RO100,Fees For Services Received,5350,Gloucestershire LRF contribution,20/07/2016,421489,2000,NET,Gloucestershire County Council,18650D
Gloucester City Council,,Grants To Voluntary Sector,FG100,Members Allocation Fund,7100F,members allocation fund grant,20/07/2016,421613,500,NET,Gfm,08553W
Gloucester City Council,,Grants To Voluntary Sector,FG100,Members Allocation Fund,7100F,picnic table,20/07/2016,421256,738,NET,Centrewire Ltd,54156P
Gloucester City Council,,REDACTED,REDACTED,REDACTED,REDACTED,REDACTED,20/07/2016,REDACTED,1058.5,NET,REDACTED,REDACTED
Gloucester City Council,,REDACTED,REDACTED,REDACTED,REDACTED,REDACTED,20/07/2016,REDACTED,925,NET,REDACTED,REDACTED
Gloucester City Council,,REDACTED,REDACTED,REDACTED,REDACTED,REDACTED,20/07/2016,REDACTED,130,NET,REDACTED,REDACTED
Gloucester City Council,,REDACTED,REDACTED,REDACTED,REDACTED,REDACTED,20/07/2016,REDACTED,489.44,NET,REDACTED,REDACTED
Gloucester City Council,,REDACTED,REDACTED,REDACTED,REDACTED,REDACTED,20/07/2016,REDACTED,489.44,NET,REDACTED,REDACTED
Gloucester City Council,,Homelessness Prevention,CH122,Fees For Services Received,5350,housing deposit,20/07/2016,421593,600,NET,Smiths Of Newent,15285J
Gloucester City Council,,REDACTED,REDACTED,REDACTED,REDACTED,REDACTED,20/07/2016,REDACTED,530,NET,REDACTED,REDACTED
Gloucester City Council,,REDACTED,REDACTED,REDACTED,REDACTED,REDACTED,20/07/2016,REDACTED,560,NET,REDACTED,REDACTED
Gloucester City Council,,Investment Property,RB500,General Repair/Maint Buildings,3000,JUN16 MTC claims,20/07/2016,421602,12490.35,NET,Rf Gardiner Limited,12299B
Gloucester City Council,,Members Support,RC300,Members Training,5535,new councillor training,20/07/2016,421603,5,NET,Conservative Councillors Association,03312W
Gloucester City Council,,Nms Contract,HI102,Contracted Services,6970,Pension Recharge Jun 16,20/07/2016,421309,11327.27,NET,Enterprise (Aol) Ltd,06695G
Gloucester City Council,,Parks Contract Management,LP100,Maint Of Grounds - General,3030,play area repairs,20/07/2016,421499,2148,NET,Greenfields Garden Services Ltd,48130G
Gloucester City Council,,Parks Contract Management,LP100,Maint Of Grounds - General,3030,repairs to play area roundabout,20/07/2016,421498,75,NET,Greenfields Garden Services Ltd,48130G
Gloucester City Council,,Registration Of Electors,RS400,Fees For Services Received,5350,polling station,20/07/2016,421135,150,NET,Wotton Hall Club,08356R
Gloucester City Council,,Registration Of Electors,RS400,Fees For Services Received,5350,polling stations 2016,20/07/2016,421604,117.02,NET,Hatherley Infant School,07265P
Gloucester City Council,,Registration Of Electors,RS400,Fees For Services Received,5350,polling stations 2016,20/07/2016,421605,157.12,NET,Hillview Primary School,12345W
Gloucester City Council,,Retail Market - Landlord,HM300,Cleaning / Domestic Equipment,5011,markets towel rental July 2016,20/07/2016,420233,20.52,NET,Initial Washroom Solutions,06143R
Gloucester City Council,,Retail Market - Landlord,HM300,Hire Of Equipment,5020,6 yard skip for Eastgate market,20/07/2016,421596,215,NET,Allstone Sand & Gravel Aggregates Ltd,00940M
Gloucester City Council,,Retail Market - Landlord,HM300,Trade Refuse Collection,3630,14 yard skip for Eastgate Market,20/07/2016,421597,300,NET,Allstone Sand & Gravel Aggregates Ltd,00940M
Gloucester City Council,,Theatre Tokens,LT106,Materials For Sale,5080,Ticket Sales June 2016,20/07/2016,421206,50,NET,Society Of London Theatre,05656Z
Gloucester City Council,,Theatre Tokens,LT106,Sale Of Goods And Services,9230,Ticket Sales June 2016,20/07/2016,421206,-2.5,NET,Society Of London Theatre,05656Z
Gloucester City Council,,Westgate Leisure Area S106,LY155,Contract Payments,0020,Westgate Leisure area final account,20/07/2016,421607,1207.5,CAP,Peter Quinn Associates,12891L
Gloucester City Council,,Blackfriars,LA609,Hire Of Equipment,5020,Blackfriars screen hire,21/07/2016,421651,38,NET,Uss Unique Sound Systems Ltd,59571S
Gloucester City Council,,Business Transformation & Tech,RT700,Consultants Fees,5349,CCN026 project management,21/07/2016,421658,23687.5,NET,Civica Uk Ltd,10841X
Gloucester City Council,,Business Transformation & Tech,RT700,Telephones And Fax,5410,Call charges JUN-JUL16,21/07/2016,420956,2796.15,NET,Gamma Business Communications,10260A
Gloucester City Council,,Cctv Revenue Budget,FP501,Security Equipment Serv/Repair,3038,CCTV camera installation,21/07/2016,421131,400,NET,W And N Adams Ltd,16216V
Gloucester City Council,,Cemeteries,HC300,Operational Materials,5070,road cones & edging shears,21/07/2016,421648,142,NET,Spaldings,48759Y
Gloucester City Council,,City Museum And Art Gallery,LM200,Publications For Sale,5064,sales from 'Time is Time Was Times Past',21/07/2016,421400,6600,NET,REDACTED,REDACTED
Gloucester City Council,,Civic Admin And Hospitality,RC210,Muniments And Regalia,5033,councillors robes & tricorn hats,21/07/2016,421657,2820,NET,Michaels Civic Robes,03293Y
Gloucester City Council,,Council Streetcare Team,HI101,Maint Of Grounds - General,3030,Randwick Park works,21/07/2016,421029,1380,NET,Greenfields Garden Services Ltd,48130G
Gloucester City Council,,Council Streetcare Team,HI101,Maint Of Grounds - General,3030,The Oval open space works,21/07/2016,421030,568.2,NET,Greenfields Garden Services Ltd,48130G
Gloucester City Council,,Council Streetcare Team,HI101,Maint Of Grounds - General,3030,Cox's Way kissing gate repairs,21/07/2016,421031,286,NET,Greenfields Garden Services Ltd,48130G
Gloucester City Council,,Countryside Unit,LP201,Contract Cleaning,3620,Ranger Centre office cleaning,21/07/2016,421647,130,NET,Cv Fisher Cleaning Services,14907C
Gloucester City Council,,Development Management,PT200,Fees For Services Received,5350,temporary staff w/c 27/6/16,21/07/2016,421608,2402.4,NET,The Oyster Partnership Limited,14900T
Gloucester City Council,,Docks Complex - Services,RB100,Gas Fittings Serv/Repair,3052,Hamworthy Merley Controller,21/07/2016,420854,1187.12,NET,Neptune Building Services Ltd,31780V
Gloucester City Council,,Docks Complex - Services,RB100,Gas Fittings Serv/Repair,3052,Heating Pump call out,21/07/2016,420855,94.5,NET,Neptune Building Services Ltd,31780V
Gloucester City Council,,Docks Complex - Services,RB100,Lift Maintenance,3051,Engineer 04/04/2016,21/07/2016,419200,131.25,NET,Pickerings Europe Ltd,58816U
Gloucester City Council,,Docks Complex - Services,RB100,Lift Maintenance,3051,Engineer 13/05/2016,21/07/2016,419172,150,NET,Pickerings Europe Ltd,58816U
Gloucester City Council,,Docks Complex - Services,RB100,Lift Maintenance,3051,Engineer 30/03/2016,21/07/2016,419199,75,NET,Pickerings Europe Ltd,58816U
Gloucester City Council,,Economic Development,FP300,Business Grant,7116,BDUK broadband voucher GBCV0039,21/07/2016,421677,3000,NET,Bdr Voice And Data Solutions Ltd,15847K
Gloucester City Council,,Flex Replacement,LY160,Software Installation,0055,CCN031 Firewall TopTix consultancy,21/07/2016,421659,944.55,CAP,Civica Uk Ltd,10841X
Gloucester City Council,,Flooding And Drainage,HE306,Maint Of Grounds - General,3030,Septic Tank,21/07/2016,420550,780,NET,Three Counties Drain Service,44033V
Gloucester City Council,,General Drainage Works,PY241,Contract Payments,0020,Barnwood Park silt removal,21/07/2016,421646,1600,CAP,Rj Contracting (Environmental) Ltd,07429H
Gloucester City Council,,General Works Fund,RY203,Contract Payments,0020,Crematorium roof project interim 2,21/07/2016,421058,15354.42,CAP,Central Roofing & Building Services Ltd,59480W
Gloucester City Council,,Gloucester Guildhall,LA100,Fees For Services Received,5350,Kings School equipment hire,21/07/2016,421652,450,NET,Uss Unique Sound Systems Ltd,59571S
Gloucester City Council,,Guildhall Bar And Caf�,LA210,Catering Provisions -Food,5110,food,21/07/2016,421072,27.7,NET,Janes Pantry,24500W
Gloucester City Council,,Guildhall Bar And Caf�,LA210,Catering Provisions -Food,5110,food,21/07/2016,421227,4.76,NET,Total Produce Gloucester,12645E
Gloucester City Council,,Guildhall Bar And Caf�,LA210,Catering Provisions -Food,5110,Food,21/07/2016,420842,4.76,NET,Total Produce Gloucester,12645E
Gloucester City Council,,Guildhall Bar And Caf�,LA210,Catering Provisions -Food,5110,milk,21/07/2016,421226,4.76,NET,Total Produce Gloucester,12645E
Gloucester City Council,,Guildhall Bar And Caf�,LA210,Catering Provisions -Food,5110,Milk,21/07/2016,420843,4.76,NET,Total Produce Gloucester,12645E
Gloucester City Council,,Guildhall Bar And Caf�,LA210,Catering Provisions -Food,5110,Milk,21/07/2016,420844,4.76,NET,Total Produce Gloucester,12645E
Gloucester City Council,,Guildhall Bar And Caf�,LA210,Catering Provisions -Food,5110,Milk,21/07/2016,420845,4.76,NET,Total Produce Gloucester,12645E
Gloucester City Council,,Guildhall Bar And Caf�,LA210,Hire Of Equipment,5020,Cellar cooler & prep counter service,21/07/2016,421653,80,NET,Ams Refrigeration Ltd,17181D
Gloucester City Council,,Guildhall Events,LA200,Advertising And Publicity,5702,adverts 16/7/16,21/07/2016,421656,500.02,NET,Local World Ltd,08556P
Gloucester City Council,,Homelessness,CH120,Board And Lodging,5515,B&B payments,21/07/2016,421663,4982.53,NET,James Legge Property (Ltd),07844R
Gloucester City Council,,Homelessness,CH120,Board And Lodging,5515,B&B payments,21/07/2016,421667,2417.46,NET,Carbrey Housing Ltd,11098G
Gloucester City Council,,Homelessness,CH120,Board And Lodging,5515,B&B payments,21/07/2016,421662,6813.64,NET,REDACTED,REDACTED
Gloucester City Council,,Homelessness,CH120,Board And Lodging,5515,B&B payments,21/07/2016,421669,1942.75,NET,Kalmwood Ltd,08568G
Gloucester City Council,,Homelessness,CH120,Board And Lodging,5515,B&B payments,21/07/2016,421670,2123.68,NET,Dorchester Guest House,12298D
Gloucester City Council,,REDACTED,REDACTED,REDACTED,REDACTED,REDACTED,21/07/2016,REDACTED,38.58,NET,REDACTED,REDACTED
Gloucester City Council,,REDACTED,REDACTED,REDACTED,REDACTED,REDACTED,21/07/2016,REDACTED,393.2,NET,REDACTED,REDACTED
Gloucester City Council,,REDACTED,REDACTED,REDACTED,REDACTED,REDACTED,21/07/2016,REDACTED,5423.14,NET,REDACTED,REDACTED
Gloucester City Council,,REDACTED,REDACTED,REDACTED,REDACTED,REDACTED,21/07/2016,REDACTED,2172.83,NET,REDACTED,REDACTED
Gloucester City Council,,Homelessness,CH120,Rent In Advance,5516,Housing Rent In Advance & Deposit,21/07/2016,421676,368.2,NET,Barton & Tredworth Developments Ltd,58165T
Gloucester City Council,,REDACTED,REDACTED,REDACTED,REDACTED,REDACTED,21/07/2016,REDACTED,368.2,NET,REDACTED,REDACTED
Gloucester City Council,,Homelessness Prevention,CH122,Fees For Services Received,5350,Housing Rent In Advance & Deposit,21/07/2016,421676,395,NET,Barton & Tredworth Developments Ltd,58165T
Gloucester City Council,,REDACTED,REDACTED,REDACTED,REDACTED,REDACTED,21/07/2016,REDACTED,420,NET,REDACTED,REDACTED
Gloucester City Council,,Investment Property,RB500,Lift Maintenance,3051,Engineer 26/04/2016,21/07/2016,419198,56.25,NET,Pickerings Europe Ltd,58816U
Gloucester City Council,,Off Street Car Parks,PP110,Fees For Services Received,5350,July 2016,21/07/2016,420459,496.84,NET,Parkeon Ltd,03238G
Gloucester City Council,,Off Street Car Parks,PP110,General Repair/Maint Buildings,3000,Cleaned gullies,21/07/2016,419952,450,NET,Three Counties Drain Service,44033V
Gloucester City Council,,Pollution Control,HE300,Fees For Services Received,5350,NO2 tube & analysis,21/07/2016,421661,20.1,NET,Gradko International Ltd,11063B
Gloucester City Council,,Pollution Control,HE300,Fees For Services Received,5350,NO2 tubes & analysis,21/07/2016,421660,104.25,NET,Gradko International Ltd,11063B
Gloucester City Council,,Registration Of Electors,RS400,Fees For Services Received,5350,Hire of hall - elections,21/07/2016,421193,200,NET,St Georges Centre,09770A
Gloucester City Council,,REDACTED,REDACTED,REDACTED,REDACTED,REDACTED,21/07/2016,REDACTED,200,NET,REDACTED,REDACTED
Gloucester City Council,,REDACTED,REDACTED,REDACTED,REDACTED,REDACTED,21/07/2016,REDACTED,325,NET,REDACTED,REDACTED
Gloucester City Council,,Southgate Moorings,RB537,General Repair/Maint Buildings,3000,Southgate Moorings,21/07/2016,419408,215.75,NET,Parkeon Ltd,03238G
Gloucester City Council,,Southgate Moorings,RB537,Maintenance Of Equipment,5030,Transfer Canister,21/07/2016,419317,159,NET,Parkeon Ltd,03238G
Gloucester City Council,,Statutory Testing,RS310,Fire Fighting Equipment,3008,Folk Museum replacement extinguishers,21/07/2016,417303,198.32,NET,Allcoopers Ltd,52921E
Gloucester City Council,,Statutory Testing,RS310,Fire Fighting Equipment,3008,HKP fire extinguisher replacement,21/07/2016,417306,222.15,NET,Allcoopers Ltd,52921E
Gloucester City Council,,The Arbor,HC501,Catering Provisions -Food,5110,food,21/07/2016,421486,226.73,NET,Bidvest Foodservice (3663),55585U
Gloucester City Council,,The Arbor,HC501,Catering Provisions -Food,5110,food,21/07/2016,421512,261.78,NET,Bidvest Foodservice (3663),55585U
Gloucester City Council,,The Arbor,HC501,Catering Provisions -Food,5110,food,21/07/2016,421513,214.57,NET,Bidvest Foodservice (3663),55585U
Gloucester City Council,,The Arbor,HC501,Catering Provisions -Food,5110,food,21/07/2016,421519,85.46,NET,Total Produce Gloucester,12645E
Gloucester City Council,,Vehicles,RS140,Fuel,4012,vehicle fuel,21/07/2016,421209,305.7,NET,Allstar Business Solutions Ltd (Arval),06594A
Gloucester City Council,,City Museum Catering,LM202,Catering Provisions -Food,5110,Machine Rental,22/07/2016,417063,135,NET,La Spaziale Uk Ltd,11823P
Gloucester City Council,,Countryside Unit,LP201,Maint Of Grounds - General,3030,Vee Belt,22/07/2016,421049,21.56,NET,A C Belting Ltd,00250X
Gloucester City Council,,Shopmobility,PE200,Cleaning Materials,3600,JUN16 SANITARY WASTE,22/07/2016,419380,12.91,NET,Ocs Group Uk Limited T/A Cannon,06506A
Gloucester City Council,,Shopmobility,PE200,Maintenance Of Equipment,5030,various repairs JUN16,22/07/2016,421649,545.8,NET,Disabled Care & Mobility,12675V
Gloucester City Council,,The Arbor,HC501,Catering Provisions -Food,5110,food,22/07/2016,421071,109.07,NET,Janes Pantry,24500W
Gloucester City Council,,The Arbor,HC501,Catering Provisions -Food,5110,Food,22/07/2016,420520,83.68,NET,Charles Saunders Food Service,16467R
Gloucester City Council,,City Museum And Art Gallery,LM200,Sewerage And Environ Charges,3402,APR-JUN16 sanitary waste,25/07/2016,420736,46.8,NET,Ocs Group Uk Limited T/A Cannon,06506A
Gloucester City Council,,Development Management,PT200,Fees For Services Received,5350,temporary staff w/c 11/7/16,25/07/2016,421654,2319.99,NET,The Oyster Partnership Limited,14900T
Gloucester City Council,,Folk Museum,LM210,Publications For Sale,5064,Various Items,25/07/2016,421033,340,NET,Polybags Limited,17174A
Gloucester City Council,,Folk Museum,LM210,Sewerage And Environ Charges,3402,Hygiene Unit,25/07/2016,420739,38.73,NET,Ocs Group Uk Limited T/A Cannon,06506A
Gloucester City Council,,Kings Quarter,RY146,Contract Payments,0020,"Bentinck House works , Bus Station",25/07/2016,419812,9120,CAP,Abbey Contracting Ltd,16395R
Gloucester City Council,,Kings Quarter,RY146,Contract Payments,0020,Bus station works,25/07/2016,419653,6880,CAP,Abbey Contracting Ltd,16395R
Gloucester City Council,,Retail Market - Landlord,HM300,Radio Equipment,5416,Fees for licence,25/07/2016,421214,619.82,NET,Ppl,49860Z
Gloucester City Council,,Allotments,HI104,Fees For Services Received,5350,Enclosed Skip,26/07/2016,421326,240,NET,Allstone Sand & Gravel Aggregates Ltd,00940M
Gloucester City Council,,Asset Management,RS300,Basic Pay - Temporary Staff,2751,JUN16 PROJECT ENGINEER SERVICES,26/07/2016,421855,5927.65,NET,Ecostep Ltd,15511Z
Gloucester City Council,,Asset Management,RS300,Maint Of Grounds - General,3030,REMOVAL OF RUGBY POSTS,26/07/2016,421797,390,NET,Mpl Wrought Iron Llp,03907P
Gloucester City Council,,Asset Management,RS300,Safety Equipment,5013,DR MARTIN BOOTS,26/07/2016,421741,75,NET,Ermin Plant Hire & Services Ltd,14150V
Gloucester City Council,,Blackfriars,LA609,Catering Provisions -Liquor,5111,drinks,26/07/2016,421772,131.23,NET,Cellar Supplies Cheltenham Ltd,01563L
Gloucester City Council,,Blackfriars,LA609,Catering Provisions -Liquor,5111,DRINKS,26/07/2016,421880,41.94,NET,Cellar Supplies Cheltenham Ltd,01563L
Gloucester City Council,,Blackfriars,LA609,Catering Provisions -Liquor,5111,DRINKS,26/07/2016,421883,77.96,NET,Cellar Supplies Cheltenham Ltd,01563L
Gloucester City Council,,Blackfriars,LA609,General Repair/Maint Buildings,3000,TROLLEY WHEELS,26/07/2016,421891,252.12,NET,H C Slingsby Plc,16430R
Gloucester City Council,,Blackfriars,LA609,Hire Of Equipment,5020,TABLE HIRE,26/07/2016,421862,82,NET,Valley Furniture Hire Ltd,08324P
Gloucester City Council,,REDACTED,REDACTED,REDACTED,REDACTED,REDACTED,26/07/2016,REDACTED,175,NET,REDACTED,REDACTED
Gloucester City Council,,Blackfriars Weddings,LA220,Catering Provisions -Liquor,5111,DRINKS,26/07/2016,421881,551.61,NET,Cellar Supplies Cheltenham Ltd,01563L
Gloucester City Council,,Blackfriars Weddings,LA220,Hire Of Equipment,5020,GLASSWARE HIRE,26/07/2016,421866,91.84,NET,Gloucester Event Hire,56935D
Gloucester City Council,,Business Transformation & Tech,RT700,Internet Service Provider Fees,5429,acct 511746301 MAY16,26/07/2016,421763,30,NET,Virgin Media Payments Ltd,09376J
Gloucester City Council,,Cemeteries,HC300,Major R And M - Vehicles,4010,DIGGER REPAIRS,26/07/2016,421875,52.5,NET,Garden Machinery Gloucester,55641K
Gloucester City Council,,Cemeteries,HC300,Purch Vehicles/M. Plant <5000,4000,HANDLE NUT,26/07/2016,421874,4.5,NET,Garden Machinery Gloucester,55641K
Gloucester City Council,,City Museum And Art Gallery,LM200,Advertising And Publicity,5702,ROBOT BANNERS,26/07/2016,421872,350,NET,Alpha Colour Printers Ltd,00945B
Gloucester City Council,,City Museum And Art Gallery,LM200,Advertising And Publicity,5702,Summer Banner Campaign,26/07/2016,421123,830,NET,Cds Publications,59644P
Gloucester City Council,,City Museum Catering,LM202,Catering Provisions -Food,5110,Milk,26/07/2016,421322,7.14,NET,Total Produce Gloucester,12645E
Gloucester City Council,,Civica It Contract,RT270,Contracted Services,6970,IT managed services,26/07/2016,420752,48061.14,NET,Civica Uk Ltd,10841X
Gloucester City Council,,Contact Centre,RB300,Other Minor Supplies Services,5590,OUT OF HOURS MONITORING,26/07/2016,421864,222.82,NET,Worcestershire Telecare,16419C
Gloucester City Council,,Corporate Reporting /Financing,RC504,Other Minor Supplies Services,5590,SUPPORTING PEOPLE MAR-SEP15,26/07/2016,421863,61531.64,NET,Gloucester City Homes,05244T
Gloucester City Council,,Council Streetcare Team,HI101,Maint Of Grounds - General,3030,birdfood,26/07/2016,421868,59.68,NET,Angell Pets Ltd,15773P
Gloucester City Council,,Council Streetcare Team,HI101,Maint Of Grounds - General,3030,LONGLEVENS PITCH DRAINAGE,26/07/2016,421892,1915,NET,Paul Gibson Sports Pitch Maintenance,16477M
Gloucester City Council,,Council Streetcare Team,HI101,Maint Of Grounds - General,3030,MANHOLE COVER REPAIRS,26/07/2016,421848,405,NET,Three Counties Drain Service,44033V
Gloucester City Council,,Disabled Facilities Grants,CY013,Disabled Facility Grants,0074,DISABLED FACILITIES GRANT MDF5089,26/07/2016,421733,1655,CAP,Terry Group Ltd,13844L
Gloucester City Council,,Disabled Facilities Grants,CY013,Disabled Facility Grants,0074,DISABLED FACILITIES GRANT MDF5178,26/07/2016,421732,4658.99,CAP,Mears Home Improvement Ltd,00096G
Gloucester City Council,,Disabled Facilities Grants,CY013,Disabled Facility Grants,0074,Disabled facilities grant MDF5208,26/07/2016,421730,1150,CAP,Stroud Stairlifts,10315A
Gloucester City Council,,Disabled Facilities Grants,CY013,Disabled Facility Grants,0074,DISABLES FACILITIES GRANT MDF5138,26/07/2016,421731,2975.16,CAP,Mears Home Improvement Ltd,00096G
Gloucester City Council,,Docks Complex - Services,RB100,Catering Provisions -Food,5110,BUFFET MENU,26/07/2016,421791,61.2,NET,Janes Pantry,24500W
Gloucester City Council,,Docks Complex - Services,RB100,Catering Provisions -Food,5110,food,26/07/2016,421260,12.05,NET,Janes Pantry,24500W
Gloucester City Council,,Docks Complex - Services,RB100,Catering Provisions -Food,5110,food,26/07/2016,421262,11.81,NET,Janes Pantry,24500W
Gloucester City Council,,Docks Complex - Services,RB100,Catering Provisions -Food,5110,food,26/07/2016,421263,12.35,NET,Janes Pantry,24500W
Gloucester City Council,,Docks Complex - Services,RB100,Catering Provisions -Food,5110,food,26/07/2016,421264,10.83,NET,Janes Pantry,24500W
Gloucester City Council,,Docks Complex - Services,RB100,Catering Provisions -Food,5110,food,26/07/2016,421265,17.62,NET,Janes Pantry,24500W
Gloucester City Council,,Docks Complex - Services,RB100,Catering Provisions -Food,5110,food,26/07/2016,421266,7.31,NET,Janes Pantry,24500W
Gloucester City Council,,Docks Complex - Services,RB100,Catering Provisions -Food,5110,food,26/07/2016,421267,14.89,NET,Janes Pantry,24500W
Gloucester City Council,,Docks Complex - Services,RB100,Catering Provisions -Food,5110,food,26/07/2016,421268,10.98,NET,Janes Pantry,24500W
Gloucester City Council,,Docks Complex - Services,RB100,Catering Provisions -Food,5110,food,26/07/2016,421269,16.83,NET,Janes Pantry,24500W
Gloucester City Council,,Docks Complex - Services,RB100,Catering Provisions -Food,5110,food,26/07/2016,421270,17.75,NET,Janes Pantry,24500W
Gloucester City Council,,Docks Complex - Services,RB100,Catering Provisions -Food,5110,food,26/07/2016,421271,14.89,NET,Janes Pantry,24500W
Gloucester City Council,,Docks Complex - Services,RB100,Catering Provisions -Food,5110,food,26/07/2016,421272,14.3,NET,Janes Pantry,24500W
Gloucester City Council,,Docks Complex - Services,RB100,Catering Provisions -Food,5110,food,26/07/2016,421273,8.76,NET,Janes Pantry,24500W
Gloucester City Council,,Docks Complex - Services,RB100,Catering Provisions -Food,5110,food,26/07/2016,421274,7.66,NET,Janes Pantry,24500W
Gloucester City Council,,Docks Complex - Services,RB100,Catering Provisions -Food,5110,food,26/07/2016,421275,16.83,NET,Janes Pantry,24500W
Gloucester City Council,,Docks Complex - Services,RB100,Catering Provisions -Food,5110,food,26/07/2016,421276,9.76,NET,Janes Pantry,24500W
Gloucester City Council,,Docks Complex - Services,RB100,Catering Provisions -Food,5110,food,26/07/2016,421277,9.03,NET,Janes Pantry,24500W
Gloucester City Council,,Docks Complex - Services,RB100,Catering Provisions -Food,5110,food,26/07/2016,421278,20.75,NET,Janes Pantry,24500W
Gloucester City Council,,Docks Complex - Services,RB100,Catering Provisions -Food,5110,food,26/07/2016,421279,4.43,NET,Janes Pantry,24500W
Gloucester City Council,,Docks Complex - Services,RB100,Catering Provisions -Food,5110,food,26/07/2016,421280,13.04,NET,Janes Pantry,24500W
Gloucester City Council,,Docks Complex - Services,RB100,Catering Provisions -Food,5110,food,26/07/2016,421281,9.74,NET,Janes Pantry,24500W
Gloucester City Council,,Docks Complex - Services,RB100,Catering Provisions -Food,5110,food,26/07/2016,421282,12.44,NET,Janes Pantry,24500W
Gloucester City Council,,Docks Complex - Services,RB100,Catering Provisions -Food,5110,food,26/07/2016,421283,10.5,NET,Janes Pantry,24500W
Gloucester City Council,,Docks Complex - Services,RB100,Catering Provisions -Food,5110,food,26/07/2016,421284,18.83,NET,Janes Pantry,24500W
Gloucester City Council,,Docks Complex - Services,RB100,Catering Provisions -Food,5110,food,26/07/2016,421285,10.39,NET,Janes Pantry,24500W
Gloucester City Council,,Docks Complex - Services,RB100,Catering Provisions -Food,5110,food,26/07/2016,421286,9,NET,Janes Pantry,24500W
Gloucester City Council,,Docks Complex - Services,RB100,Catering Provisions -Food,5110,food,26/07/2016,421287,12.44,NET,Janes Pantry,24500W
Gloucester City Council,,Docks Complex - Services,RB100,Catering Provisions -Food,5110,food,26/07/2016,421288,9.03,NET,Janes Pantry,24500W
Gloucester City Council,,Docks Complex - Services,RB100,Catering Provisions -Food,5110,food,26/07/2016,421289,8.25,NET,Janes Pantry,24500W
Gloucester City Council,,Docks Complex - Services,RB100,Catering Provisions -Food,5110,food,26/07/2016,421290,17.25,NET,Janes Pantry,24500W
Gloucester City Council,,Docks Complex - Services,RB100,Catering Provisions -Food,5110,food,26/07/2016,421291,8.27,NET,Janes Pantry,24500W
Gloucester City Council,,Docks Complex - Services,RB100,Catering Provisions -Food,5110,food,26/07/2016,421292,12.44,NET,Janes Pantry,24500W
Gloucester City Council,,Docks Complex - Services,RB100,Catering Provisions -Food,5110,food,26/07/2016,421293,10.43,NET,Janes Pantry,24500W
Gloucester City Council,,Docks Complex - Services,RB100,Catering Provisions -Food,5110,food,26/07/2016,421294,9.14,NET,Janes Pantry,24500W
Gloucester City Council,,Docks Complex - Services,RB100,Catering Provisions -Food,5110,food,26/07/2016,421295,13.04,NET,Janes Pantry,24500W
Gloucester City Council,,Docks Complex - Services,RB100,Catering Provisions -Food,5110,food,26/07/2016,421297,7.31,NET,Janes Pantry,24500W
Gloucester City Council,,Docks Complex - Services,RB100,Catering Provisions -Food,5110,food,26/07/2016,421298,14.66,NET,Janes Pantry,24500W
Gloucester City Council,,Docks Complex - Services,RB100,Catering Provisions -Food,5110,food,26/07/2016,421299,15.09,NET,Janes Pantry,24500W
Gloucester City Council,,Docks Complex - Services,RB100,Catering Provisions -Food,5110,food,26/07/2016,421740,242.26,NET,Bidvest Foodservice (3663),55585U
Gloucester City Council,,Docks Complex - Services,RB100,Catering Provisions -Food,5110,food,26/07/2016,421777,45.85,NET,Total Produce Gloucester,12645E
Gloucester City Council,,Docks Complex - Services,RB100,Catering Provisions -Food,5110,food,26/07/2016,421778,54.89,NET,Total Produce Gloucester,12645E
Gloucester City Council,,Docks Complex - Services,RB100,Catering Provisions -Food,5110,food,26/07/2016,421779,67.56,NET,Total Produce Gloucester,12645E
Gloucester City Council,,Docks Complex - Services,RB100,Catering Provisions -Food,5110,food,26/07/2016,421780,62.1,NET,Total Produce Gloucester,12645E
Gloucester City Council,,Docks Complex - Services,RB100,Catering Provisions -Food,5110,food,26/07/2016,421781,12.92,NET,Total Produce Gloucester,12645E
Gloucester City Council,,Docks Complex - Services,RB100,Catering Provisions -Food,5110,food,26/07/2016,421783,111.68,NET,Bidvest Foodservice (3663),55585U
Gloucester City Council,,Docks Complex - Services,RB100,Catering Provisions -Food,5110,food,26/07/2016,421785,220.85,NET,Bidvest Foodservice (3663),55585U
Gloucester City Council,,Docks Complex - Services,RB100,Catering Provisions -Food,5110,food,26/07/2016,421786,134.19,NET,Bidvest Foodservice (3663),55585U
Gloucester City Council,,Docks Complex - Services,RB100,Catering Provisions -Food,5110,food,26/07/2016,421787,148.75,NET,Bidvest Foodservice (3663),55585U
Gloucester City Council,,Docks Complex - Services,RB100,Catering Provisions -Food,5110,food,26/07/2016,421788,123.06,NET,Bidvest Foodservice (3663),55585U
Gloucester City Council,,Docks Complex - Services,RB100,Catering Provisions -Food,5110,food,26/07/2016,421789,210.15,NET,Bidvest Foodservice (3663),55585U
Gloucester City Council,,Docks Complex - Services,RB100,Catering Provisions -Food,5110,food,26/07/2016,421790,202.44,NET,Bidvest Foodservice (3663),55585U
Gloucester City Council,,Docks Complex - Services,RB100,Catering Provisions -Food,5110,food,26/07/2016,421795,85.89,NET,Total Produce Gloucester,12645E
Gloucester City Council,,Docks Complex - Services,RB100,Catering Provisions -Food,5110,food,26/07/2016,421799,7.81,NET,Total Produce Gloucester,12645E
Gloucester City Council,,Docks Complex - Services,RB100,Catering Provisions -Food,5110,food,26/07/2016,421800,30.81,NET,Total Produce Gloucester,12645E
Gloucester City Council,,Docks Complex - Services,RB100,Catering Provisions -Food,5110,food,26/07/2016,421801,33.8,NET,Total Produce Gloucester,12645E
Gloucester City Council,,Docks Complex - Services,RB100,Catering Provisions -Food,5110,food,26/07/2016,421802,43.08,NET,Total Produce Gloucester,12645E
Gloucester City Council,,Docks Complex - Services,RB100,Catering Provisions -Food,5110,food,26/07/2016,421803,31.79,NET,Total Produce Gloucester,12645E
Gloucester City Council,,Docks Complex - Services,RB100,Catering Provisions -Food,5110,food,26/07/2016,421806,29.85,NET,Total Produce Gloucester,12645E
Gloucester City Council,,Docks Complex - Services,RB100,Catering Provisions -Food,5110,food,26/07/2016,421807,29.34,NET,Total Produce Gloucester,12645E
Gloucester City Council,,Docks Complex - Services,RB100,Catering Provisions -Food,5110,food,26/07/2016,421808,43.69,NET,Total Produce Gloucester,12645E
Gloucester City Council,,Docks Complex - Services,RB100,Catering Provisions -Food,5110,food,26/07/2016,421810,28.43,NET,Total Produce Gloucester,12645E
Gloucester City Council,,Docks Complex - Services,RB100,Catering Provisions -Food,5110,food,26/07/2016,421811,43.02,NET,Total Produce Gloucester,12645E
Gloucester City Council,,Docks Complex - Services,RB100,Catering Provisions -Food,5110,food,26/07/2016,421819,49.33,NET,Total Produce Gloucester,12645E
Gloucester City Council,,Docks Complex - Services,RB100,Catering Provisions -Food,5110,food,26/07/2016,421820,22.02,NET,Total Produce Gloucester,12645E
Gloucester City Council,,Docks Complex - Services,RB100,Catering Provisions -Food,5110,food,26/07/2016,421821,50.82,NET,Total Produce Gloucester,12645E
Gloucester City Council,,Docks Complex - Services,RB100,Catering Provisions -Food,5110,food,26/07/2016,421822,30.6,NET,Total Produce Gloucester,12645E
Gloucester City Council,,Docks Complex - Services,RB100,Catering Provisions -Food,5110,food,26/07/2016,421823,25.75,NET,Total Produce Gloucester,12645E
Gloucester City Council,,Docks Complex - Services,RB100,Catering Provisions -Food,5110,food,26/07/2016,421824,47.74,NET,Total Produce Gloucester,12645E
Gloucester City Council,,Docks Complex - Services,RB100,Catering Provisions -Food,5110,food,26/07/2016,421826,18.11,NET,Total Produce Gloucester,12645E
Gloucester City Council,,Docks Complex - Services,RB100,Catering Provisions -Food,5110,food,26/07/2016,421827,63.79,NET,Total Produce Gloucester,12645E
Gloucester City Council,,Docks Complex - Services,RB100,Catering Provisions -Food,5110,food,26/07/2016,421829,12.45,NET,Total Produce Gloucester,12645E
Gloucester City Council,,Docks Complex - Services,RB100,Catering Provisions -Food,5110,food,26/07/2016,421830,65.18,NET,Total Produce Gloucester,12645E
Gloucester City Council,,Docks Complex - Services,RB100,Catering Provisions -Food,5110,food,26/07/2016,421831,25.32,NET,Total Produce Gloucester,12645E
Gloucester City Council,,Docks Complex - Services,RB100,Catering Provisions -Food,5110,food,26/07/2016,421833,28.28,NET,Total Produce Gloucester,12645E
Gloucester City Council,,Docks Complex - Services,RB100,Catering Provisions -Food,5110,food,26/07/2016,421834,100.49,NET,Total Produce Gloucester,12645E
Gloucester City Council,,Docks Complex - Services,RB100,Catering Provisions -Food,5110,food,26/07/2016,421835,44.5,NET,Total Produce Gloucester,12645E
Gloucester City Council,,Docks Complex - Services,RB100,Catering Provisions -Food,5110,food,26/07/2016,421836,13.12,NET,Total Produce Gloucester,12645E
Gloucester City Council,,Docks Complex - Services,RB100,Catering Provisions -Food,5110,food,26/07/2016,421837,43.11,NET,Total Produce Gloucester,12645E
Gloucester City Council,,Docks Complex - Services,RB100,Catering Provisions -Food,5110,food,26/07/2016,421838,19.47,NET,Total Produce Gloucester,12645E
Gloucester City Council,,Docks Complex - Services,RB100,Catering Provisions -Food,5110,food,26/07/2016,421839,31.98,NET,Total Produce Gloucester,12645E
Gloucester City Council,,Docks Complex - Services,RB100,Catering Provisions -Food,5110,foodr,26/07/2016,421784,101.55,NET,Bidvest Foodservice (3663),55585U
Gloucester City Council,,Docks Complex - Services,RB100,Catering Provisions -Food,5110,milk,26/07/2016,421776,7.04,NET,Total Produce Gloucester,12645E
Gloucester City Council,,Docks Complex - Services,RB100,Catering Provisions -Food,5110,milk,26/07/2016,421782,8.64,NET,Total Produce Gloucester,12645E
Gloucester City Council,,Docks Complex - Services,RB100,Catering Provisions -Food,5110,milk,26/07/2016,421794,8.64,NET,Total Produce Gloucester,12645E
Gloucester City Council,,Docks Complex - Services,RB100,Catering Provisions -Food,5110,milk,26/07/2016,421809,8.64,NET,Total Produce Gloucester,12645E
Gloucester City Council,,Docks Complex - Services,RB100,Catering Provisions -Food,5110,milk,26/07/2016,421828,16.68,NET,Total Produce Gloucester,12645E
Gloucester City Council,,Docks Complex - Services,RB100,Catering Provisions -Food,5110,milk,26/07/2016,421832,8.64,NET,Total Produce Gloucester,12645E
Gloucester City Council,,Docks Complex - Services,RB100,Cleaning / Domestic Equipment,5011,Callout to dishwasher,26/07/2016,420827,337.68,NET,Aim Commercial Catering Equipment Services,15146A
Gloucester City Council,,Docks Complex - Services,RB100,Hire Of Equipment,5020,AUG-NOV16 sanipod rental,26/07/2016,421307,422.24,NET,Wessex Products (Leasing) Ltd,03684C
Gloucester City Council,,Dog Warden,HE400,Fees For Services Received,5350,Stray Dog Service,26/07/2016,421032,3579.82,NET,Bromsgrove District Council,15754U
Gloucester City Council,,Folk Museum,LM210,Exhibits And Collections,5038,POLYESTER FILM,26/07/2016,421871,140.08,NET,Conservation By Design,04282D
Gloucester City Council,,General Drainage Works,PY241,Contract Payments,0020,CABLE DIVERSION FEE BYBROOK RD/GRANGE RD,26/07/2016,421734,1334.53,CAP,Western Power Distribution,13058T
Gloucester City Council,,Gloucester Guildhall,LA100,Maintenance Of Equipment,5030,SEATING UNIT SERVICE,26/07/2016,421798,370.8,NET,Audience Systems,01215P
Gloucester City Council,,Guildhall Bar And Caf�,LA210,Catering Provisions -Food,5110,food,26/07/2016,421853,126.09,NET,Woodward Foodservice,10714F
Gloucester City Council,,Guildhall Bar And Caf�,LA210,Catering Provisions -Liquor,5111,DRINKS,26/07/2016,421825,13.98,NET,Cellar Supplies Cheltenham Ltd,01563L
Gloucester City Council,,Guildhall Bar And Caf�,LA210,Catering Provisions -Liquor,5111,DRINKS,26/07/2016,421882,947.24,NET,Cellar Supplies Cheltenham Ltd,01563L
Gloucester City Council,,Guildhall Bar And Caf�,LA210,Fees For Services Received,5350,VENTILATION SURVEY,26/07/2016,421817,1200,NET,Mya Consulting,15843U
Gloucester City Council,,REDACTED,REDACTED,REDACTED,REDACTED,REDACTED,26/07/2016,REDACTED,80,NET,REDACTED,REDACTED
Gloucester City Council,,REDACTED,REDACTED,REDACTED,REDACTED,REDACTED,26/07/2016,REDACTED,309.17,NET,REDACTED,REDACTED
Gloucester City Council,,REDACTED,REDACTED,REDACTED,REDACTED,REDACTED,26/07/2016,REDACTED,100,NET,REDACTED,REDACTED
Gloucester City Council,,REDACTED,REDACTED,REDACTED,REDACTED,REDACTED,26/07/2016,REDACTED,200,NET,REDACTED,REDACTED
Gloucester City Council,,REDACTED,REDACTED,REDACTED,REDACTED,REDACTED,26/07/2016,REDACTED,150,NET,REDACTED,REDACTED
Gloucester City Council,,REDACTED,REDACTED,REDACTED,REDACTED,REDACTED,26/07/2016,REDACTED,925,NET,REDACTED,REDACTED
Gloucester City Council,,Guildhall Events,LA200,Fees For Services Received,5350,Aug-Sep whats on distribution,26/07/2016,421770,382.5,NET,Glide Media,58829J
Gloucester City Council,,REDACTED,REDACTED,REDACTED,REDACTED,REDACTED,26/07/2016,REDACTED,140,NET,REDACTED,REDACTED
Gloucester City Council,,REDACTED,REDACTED,REDACTED,REDACTED,REDACTED,26/07/2016,REDACTED,140,NET,REDACTED,REDACTED
Gloucester City Council,,Homelessness,CH120,Fees For Services Received,5350,medical reports,26/07/2016,421769,105,NET,Now Medical,03468L
Gloucester City Council,,Homelessness,CH120,Removal And Storage Fees,5513,STORAGE FEES,26/07/2016,421816,97.71,NET,Advanced Removals & Storage Ltd,57142R
Gloucester City Council,,Homelessness,CH120,Removal And Storage Fees,5513,STORAGE FEES,26/07/2016,421840,78.21,NET,Advanced Removals & Storage Ltd,57142R
Gloucester City Council,,Homelessness,CH120,Removal And Storage Fees,5513,STORAGE FEES,26/07/2016,421841,78.21,NET,Advanced Removals & Storage Ltd,57142R
Gloucester City Council,,Homelessness,CH120,Removal And Storage Fees,5513,STORAGE FEES,26/07/2016,421845,156.43,NET,Advanced Removals & Storage Ltd,57142R
Gloucester City Council,,Homelessness,CH120,Removal And Storage Fees,5513,STORAGE FEES,26/07/2016,421846,39.11,NET,Advanced Removals & Storage Ltd,57142R
Gloucester City Council,,Homelessness,CH120,Removal And Storage Fees,5513,STORAGE FEES,26/07/2016,421857,39.11,NET,Advanced Removals & Storage Ltd,57142R
Gloucester City Council,,Homelessness,CH120,Removal And Storage Fees,5513,STORAGE FEES,26/07/2016,421858,191.25,NET,Advanced Removals & Storage Ltd,57142R
Gloucester City Council,,Homelessness,CH120,Removal And Storage Fees,5513,STORAGE FEES,26/07/2016,421859,174.86,NET,Advanced Removals & Storage Ltd,57142R
Gloucester City Council,,Homelessness,CH120,Removal And Storage Fees,5513,STORAGE FEES,26/07/2016,421860,78.21,NET,Advanced Removals & Storage Ltd,57142R
Gloucester City Council,,Homelessness,CH120,Removal And Storage Fees,5513,STORAGE FEES,26/07/2016,421876,39.11,NET,Advanced Removals & Storage Ltd,57142R
Gloucester City Council,,Homelessness,CH120,Removal And Storage Fees,5513,STORAGE FEES,26/07/2016,421877,39.11,NET,Advanced Removals & Storage Ltd,57142R
Gloucester City Council,,Homelessness,CH120,Removal And Storage Fees,5513,STORAGE FEES,26/07/2016,421878,69.43,NET,Advanced Removals & Storage Ltd,57142R
Gloucester City Council,,Homelessness,CH120,Removal And Storage Fees,5513,STORAGE FEES,26/07/2016,421879,78.21,NET,Advanced Removals & Storage Ltd,57142R
Gloucester City Council,,Homelessness Prevention,CH122,Basic Pay - Temporary Staff,2751,temporary staff,26/07/2016,421497,900.98,NET,Venn Group Ltd,04339P
Gloucester City Council,,Homelessness Prevention,CH122,Basic Pay - Temporary Staff,2751,temporary staff W/E 10/7/16,26/07/2016,421751,902.95,NET,Venn Group Ltd,04339P
Gloucester City Council,,Homelessness Prevention,CH122,Basic Pay - Temporary Staff,2751,temporary staff W/E 17/7/16,26/07/2016,421752,904.91,NET,Venn Group Ltd,04339P
Gloucester City Council,,Homelessness Prevention,CH122,Fees For Services Received,5350,medical reports,26/07/2016,421769,35,NET,Now Medical,03468L
Gloucester City Council,,Investment Property,RB500,General Repair/Maint Buildings,3000,ROUTINE MAINTENANCE,26/07/2016,421867,212,NET,Cooltherm,06087Z
Gloucester City Council,,Kings Quarter,RY146,Contract Payments,0020,ARCHITECHTURAL SERVICES,26/07/2016,421818,4500,CAP,Roberts Limbrick Ltd,64586RV
Gloucester City Council,,Nms Contract,HI102,Contracted Services,6970,Commodity Top Up June 16,26/07/2016,421081,25856,NET,Enterprise (Aol) Ltd,06695G
Gloucester City Council,,Nms Contract,HI102,Contracted Services,6970,July 16 Service Fee,26/07/2016,421323,478446.3,NET,Enterprise (Aol) Ltd,06695G
Gloucester City Council,,Rehousing,CH111,Fees For Services Received,5350,medical reports,26/07/2016,421769,250,NET,Now Medical,03468L
Gloucester City Council,,Swrda Property Tfr,RB503,Fees For Services Received,5350,PROFESSIONAL SERVICES RE BAKERS QUAY,26/07/2016,421865,1293.26,NET,Trowers & Hamlins Llp,51600P
Gloucester City Council,,Tic Trading,LT110,Materials For Sale,5080,GOODS FOR RESALE,26/07/2016,421812,528.6,NET,Magnartism Ltd,09098P
Gloucester City Council,,Utilities,PT502,Electricity Supply,3110,Charges Mar - May 16,26/07/2016,421222,78.56,NET,Npower Ltd,02663W
Gloucester City Council,,Barbican Car Park,RB543,Maint Of Grounds - General,3030,BARBICAN CAR PARK GRASS CUTTING,27/07/2016,421755,680,NET,Ken Pink Plant Hire Ltd,56884V
Gloucester City Council,,Barbican Car Park,RB543,Maint Of Grounds - General,3030,TARMAC RAMP,27/07/2016,421754,1960,NET,Ken Pink Plant Hire Ltd,56884V
Gloucester City Council,,Blackfriars,LA609,Hire Of Equipment,5020,tablecloth hire,27/07/2016,421952,142,NET,Gloucester Event Hire,56935D
Gloucester City Council,,Cemeteries,HC300,Basic Pay - Temporary Staff,2751,temporary staff 26/6/16,27/07/2016,421170,439.88,NET,Premiere Employment Group Ltd,55468Z
Gloucester City Council,,Cemeteries,HC300,Basic Pay - Temporary Staff,2751,temporary staff w/e 26/6/16,27/07/2016,421171,439.88,NET,Premiere Employment Group Ltd,55468Z
Gloucester City Council,,Cemeteries,HC300,Basic Pay - Temporary Staff,2751,temporary staff W/E 10/7/16,27/07/2016,421869,439.88,NET,Premiere Employment Group Ltd,55468Z
Gloucester City Council,,Cemeteries,HC300,Basic Pay - Temporary Staff,2751,temporary staff W/E 17/7/16,27/07/2016,421850,439.88,NET,Premiere Employment Group Ltd,55468Z
Gloucester City Council,,Civica Admin Charges,RT105,Fees For Services Received,5350,Subscription,27/07/2016,419706,4,NET,Companies House,58954E
Gloucester City Council,,Civica Admin Charges,RT105,Fees For Services Received,5350,Subscription,27/07/2016,421089,4,NET,Companies House,58954E
Gloucester City Council,,Civica It Contract,RT270,Contracted Services,6970,JUN16 pension excess charge,27/07/2016,421504,796.05,NET,Civica Uk Ltd,10841X
Gloucester City Council,,Client Revs & Bens Contract,RT240,Bailiffs Fees,5368,VAT due on statutory fees,27/07/2016,421037,0,NET,Bristow & Sutor,05450M
Gloucester City Council,,Client Revs & Bens Contract,RT240,Bailiffs Fees,5368,vat only invoice,27/07/2016,421774,0,NET,Bristow & Sutor,05450M
Gloucester City Council,,Client Revs & Bens Contract,RT240,Bailiffs Fees,5368,VAT only invoice,27/07/2016,421775,0,NET,Bristow & Sutor,05450M
Gloucester City Council,,Corporate Reporting /Financing,RC504,Fees For Services Received,5350,Childcare Vouchers,27/07/2016,421027,43.55,NET,Wider Plan Ltd ( Formerly Kiddivouchers),07893B
Gloucester City Council,,Council Streetcare Team,HI101,Maint Of Grounds - General,3030,BINS,27/07/2016,421796,1050,NET,Wybone Limited,13540L
Gloucester City Council,,Development Management,PT200,Fees For Services Received,5350,temporary staff w/c 27/6/16,27/07/2016,420968,1420,NET,The Oyster Partnership Limited,14900T
Gloucester City Council,,Development Management,PT200,Fees For Services Received,5350,temporary staff w/c 4/7/16,27/07/2016,421363,1440,NET,The Oyster Partnership Limited,14900T
Gloucester City Council,,Development Management,PT200,Fees For Services Received,5350,temporary staff w/c 11/7/16,27/07/2016,421655,880,NET,The Oyster Partnership Limited,14900T
Gloucester City Council,,Docks Complex - Castlemeads Cp,RB210,Contracted Services,6970,GC VEHICLES JUN16,27/07/2016,421116,460.16,NET,Apcoa Parking (Uk) Ltd,09954M
Gloucester City Council,,Docks Complex - Castlemeads Cp,RB210,Contracted Services,6970,JUN16 GC FIXED OVERHEAD,27/07/2016,421202,773.48,NET,Apcoa Parking (Uk) Ltd,09954M
Gloucester City Council,,Docks Complex - Castlemeads Cp,RB210,Contracted Services,6970,JUN16 GC P&D AND HEAD CAMS,27/07/2016,421117,2122.13,NET,Apcoa Parking (Uk) Ltd,09954M
Gloucester City Council,,Docks Complex - Castlemeads Cp,RB210,Contracted Services,6970,JUN16 GC VARIABLE ENFORCEMENT,27/07/2016,421119,142.76,NET,Apcoa Parking (Uk) Ltd,09954M
Gloucester City Council,,Docks Complex - Services,RB100,Security Equipment Serv/Repair,3038,North Warehouse Intruder alarm call out,27/07/2016,420959,70,NET,Adt Fire & Security Plc,54086D
Gloucester City Council,,Eastgate Rooftop Emerg Works,RY159,Contract Payments,0020,Eastgate car park works,27/07/2016,421954,73660.06,CAP,Universal Sealants (Uk) Ltd,15743Z
Gloucester City Council,,Financial Services,RT200,Subscriptions,5600,Public Admin licence 2016-17,27/07/2016,421609,746.25,NET,Cla (The Copyright Licensing Agency Limited),15958Z
Gloucester City Council,,Flex Replacement,LY160,Contract Payments,0020,professional services,27/07/2016,421040,7500,CAP,Toptix (Uk) Ltd,16411V
Gloucester City Council,,Homelessness,CH120,Rent In Advance,5516,housing Rent In Advance & Deposit,27/07/2016,421962,368.2,NET,Redbrick Estates,13078L
Gloucester City Council,,REDACTED,REDACTED,REDACTED,REDACTED,REDACTED,27/07/2016,REDACTED,272.72,NET,REDACTED,REDACTED
Gloucester City Council,,Homelessness Prevention,CH122,Fees For Services Received,5350,housing Rent In Advance & Deposit,27/07/2016,421962,395,NET,Redbrick Estates,13078L
Gloucester City Council,,REDACTED,REDACTED,REDACTED,REDACTED,REDACTED,27/07/2016,REDACTED,400,NET,REDACTED,REDACTED
Gloucester City Council,,Kings Quarter,RY146,Contract Payments,0020,EXCAVATOR HIRE,27/07/2016,421753,464,CAP,Ken Pink Plant Hire Ltd,56884V
Gloucester City Council,,Kings Quarter,RY146,Contract Payments,0020,June works - Bentink House/bus station,27/07/2016,420965,11370,CAP,Abbey Contracting Ltd,16395R
Gloucester City Council,,Kings Quarter,RY146,Contract Payments,0020,re bus station - credited works,27/07/2016,421955,3840,CAP,Abbey Contracting Ltd,16395R
Gloucester City Council,,Land Searches,RO300,Fees For Services Received,5350,CON29 searches APR-JUN16,27/07/2016,421950,5081.31,NET,Gloucestershire County Council,18650D
Gloucester City Council,,Off Street Car Parks,PP110,Contracted Services,6970,JUN16 GC OTHER ITEMS,27/07/2016,421118,12467.01,NET,Apcoa Parking (Uk) Ltd,09954M
Gloucester City Council,,Off Street Car Parks,PP110,Contracted Services,6970,JUN16 GC VARIABLE ENFORCEMENT,27/07/2016,421119,4042.83,NET,Apcoa Parking (Uk) Ltd,09954M
Gloucester City Council,,Off Street Car Parks,PP110,Fees For Services Received,5350,Parking Equipment June 16,27/07/2016,419122,514.2,NET,Parkeon Ltd,03238G
Gloucester City Council,,Senior Management Restructurin,RO200,Pension Contribs Incl Backf,2901,Early Retirement redundancy costs,27/07/2016,421768,32099.34,NET,Gloucestershire County Council,10614L
Gloucester City Council,,Statutory Testing,RS310,Fees For Services Received,5350,Guildhall maintenance visit,27/07/2016,419082,450,NET,Va Systems Ltd,15034N
Gloucester City Council,,Tic Trading,LT110,Materials For Sale,5080,2017 Cotswold calendar,27/07/2016,421038,81.36,NET,Judge Sampson Ltd,14513E
Gloucester City Council,,Tic Trading,LT110,Materials For Sale,5080,goods for resale,27/07/2016,421059,616.6,NET,A M International Agencies Limited,16500V
Gloucester City Council,,Townscape Heritage Initiative,LY145,Contract Payments,0020,thi energy efficiency training course,27/07/2016,421963,950,CAP,Environment Study Centre,16220E
Gloucester City Council,,Treasury Management,VR110,Brokerage Fees,5951,1573879-00 FEES,27/07/2016,419147,2506.85,NET,Tradition (Uk) Ltd,59084J
Gloucester City Council,,Treasury Management,VR110,Brokerage Fees,5951,BROKERAGE FEES,27/07/2016,421758,2506.85,NET,Tradition (Uk) Ltd,59084J
Gloucester City Council,,Treasury Management,VR110,Brokerage Fees,5951,brokers fees JAN16,27/07/2016,418842,835.62,NET,Martin Brokers (Uk) Plc,51416J
Gloucester City Council,,Vehicles,RS140,Fuel,4012,vehicle fuel,27/07/2016,421742,181.66,NET,Allstar Business Solutions Ltd (Arval),06594A
Gloucester City Council,,Vehicles,RS140,Tyres,4014,Various Items,27/07/2016,421110,115.12,NET,Ats Euromaster Ltd,06005E
Gloucester City Council,,Asset Management,RS300,General Repair/Maint Buildings,3000,Consultancy Fees,28/07/2016,420814,500,NET,Goddard Consulting Llp,10598G
Gloucester City Council,,Bus Station,RB400,General Repair/Maint Buildings,3000,Bus station lining works,28/07/2016,421650,910,NET,Roadmark Ltd,37743T
Gloucester City Council,,City Museum Catering,LM202,Catering Provisions -Food,5110,MILK,28/07/2016,421854,4.76,NET,Total Produce Gloucester,12645E
Gloucester City Council,,City Museum Catering,LM202,Catering Provisions -Food,5110,MILK,28/07/2016,421861,4.76,NET,Total Produce Gloucester,12645E
Gloucester City Council,,City Museum Catering,LM202,Catering Provisions -Food,5110,MILK,28/07/2016,421884,7.14,NET,Total Produce Gloucester,12645E
Gloucester City Council,,Docks Complex - Services,RB100,Recycling,3631,Recycling,28/07/2016,421095,2,NET,Printwaste Recycling,57114W
Gloucester City Council,,Folk Museum,LM210,Licences,5703,FOLK MUSEUM JUKEBOX 2016-17,28/07/2016,421997,28.17,NET,Prs For Music,05077M
Gloucester City Council,,General Works Fund,RY203,Capital General Repairs & Main,0013,Skips,28/07/2016,421325,230,CAP,Allstone Sand & Gravel Aggregates Ltd,00940M
Gloucester City Council,,General Works Fund,RY203,Capital General Repairs & Main,0013,toilet hire,28/07/2016,421047,88,CAP,Abbey Loos Limited,10787B
Gloucester City Council,,Gloucester Guildhall,LA100,Licences,5703,Guildhall licence 2016-17,28/07/2016,421953,145.5,NET,Tv Licensing,32680R
Gloucester City Council,,Grants To Voluntary Sector,FG100,Abcd Grants,7100A,purchase of books,28/07/2016,421993,25,NET,Gl Communities,09535X
Gloucester City Council,,REDACTED,REDACTED,REDACTED,REDACTED,REDACTED,REDACTED,421995,272.72,NET,REDACTED,REDACTED
Gloucester City Council,,REDACTED,REDACTED,REDACTED,REDACTED,REDACTED,REDACTED,421995,150,NET,REDACTED,REDACTED
Gloucester City Council,,Investment Property,RB500,Fire Fighting Equipment,3008,takeover of sprinkler system,28/07/2016,417302,933.66,NET,Allcoopers Ltd,52921E
Gloucester City Council,,Investment Property,RB500,General Repair/Maint Buildings,3000,minor works building contract,28/07/2016,421956,208.16,NET,Riba Enterprises,09988U
Gloucester City Council,,Investment Property,RB500,General Repair/Maint Buildings,3000,Minor Works building contract,28/07/2016,421951,52.04,NET,Riba Enterprises,09988U
Gloucester City Council,,Parks Contract Management,LP100,Maint Of Grounds - General,3030,LANNET PLAY AREA REPAIRS,28/07/2016,421893,357,NET,Greenfields Garden Services Ltd,48130G
Gloucester City Council,,The Fleece,RB530,General Repair/Maint Buildings,3000,toilet hire,28/07/2016,421046,176,NET,Abbey Loos Limited,10787B
Gloucester City Council,,Tic Theatre Ticket Sales,LT107,Materials For Sale,5080,"ticket sales for Robin Hood, 24/7/16",28/07/2016,421994,57,NET,Pied Piper Appeal,02491B
Gloucester City Council,,Tic Theatre Ticket Sales,LT107,Sale Of Goods And Services,9230,"ticket sales for Robin Hood, 24/7/16",28/07/2016,421994,-2.38,NET,Pied Piper Appeal,02491B
Gloucester City Council,,Blackfriars Weddings,LA220,Hire Of Equipment,5020,LOSS/BREAKAGES CHARGE RE 7/7/16,29/07/2016,421851,12.5,NET,Gloucester Event Hire,56935D
Gloucester City Council,,REDACTED,REDACTED,REDACTED,REDACTED,REDACTED,REDACTED,REDACTED,350,NET,REDACTED,REDACTED
Gloucester City Council,,Business Transformation & Tech,RT700,Telephones And Fax,5410,leased lines JULY 2016,29/07/2016,420958,3959.81,NET,Gamma Business Communications,10260A
Gloucester City Council,,Disabled Facilities Grants,CY013,Disabled Facility Grants,0074,disabled facilities grant MDF5082,29/07/2016,422016,7002.54,CAP,Mears Home Improvement Ltd,00096G
Gloucester City Council,,Docks Complex - Services,RB100,Recycling,3631,Recycling,29/07/2016,421092,121.8,NET,Printwaste Recycling,57114W
Gloucester City Council,,Dog Warden,HE400,Fees For Services Received,5350,JUN16 STRAY DOG SERVICE,29/07/2016,421792,2160.58,NET,Bromsgrove District Council,15754U
Gloucester City Council,,Guildhall Events,LA200,Fees For Services Received,5350,JUL16 WHATS ON,29/07/2016,421843,939,NET,Color Co,57707K
Gloucester City Council,,Marketing Gloucester Charges,RC433,Fees For Services Received,5350,Mayors Civic Party,29/07/2016,422015,200,NET,J T Maynard Watts T/A Thomas Trilby,00791P
Gloucester City Council,,Retail Market - Landlord,HM300,Cleaning / Domestic Equipment,5011,TOWEL HIRE AUG16,29/07/2016,421844,20.52,NET,Initial Washroom Solutions,06143R
Gloucester City Council,,Blackfriars,LA609,Cleaning Materials,3600,hand dryers,,421961,179.94,NET,Cpc,52980M
Gloucester City Council,,Business Transformation & Tech,RT700,Computer Hardware <5000,5420,Serial Port,,421232,294.69,NET,Dell Computers Corporation Ltd,55920C
Gloucester City Council,,Corporate Reporting /Financing,RC504,Miscellaneous Expenses,2952,Retirement Costs,,420782,273177.03,NET,Gloucester City Homes,05244T
Gloucester City Council,,Crematorium,HC200,Fees For Services Received,5350,Crematorium Fees July 2016,,422028,866.08,NET,Dr D Martin,00890P
Gloucester City Council,,Crematorium,HC200,Fees For Services Received,5350,Crematorium Fees July 2016,,422029,505.04,NET,Dr R W Bell,01571P
Gloucester City Council,,Crematorium,HC200,Fees For Services Received,5350,Crematorium Fees July 2016,,422030,992.08,NET,Dr C M Stretton,00306P
Gloucester City Council,,REDACTED,REDACTED,REDACTED,REDACTED,REDACTED,,REDACTED,172,NET,REDACTED,REDACTED
Gloucester City Council,,REDACTED,REDACTED,REDACTED,REDACTED,REDACTED,,REDACTED,100,NET,REDACTED,REDACTED
Gloucester City Council,,Financial Services,RT200,Fees For Services Received,5350,BDUK Broadband Voucher,,420792,3000,NET,Eurolink Connect Limited,15772S
Gloucester City Council,,Financial Services,RT200,Fees For Services Received,5350,Ice Cube Maker,,420812,199.99,NET,Nisbets,55372P
Gloucester City Council,,Homelessness,CH120,Rents,3200,Management Fee,,420788,46250,NET,Gloucester City Homes,05244T
Gloucester City Council,,Investment Property,RB500,General Repair/Maint Buildings,3000,EASTGATE MARKET DRAIN CLEARANCE,,421849,110,NET,Three Counties Drain Service,44033V
Gloucester City Council,,Investment Property,RB500,General Repair/Maint Buildings,3000,M&E survey of HKP plant & BMS spec,,412504,750,NET,Briar Associates,15032T
Gloucester City Council,,Investment Property,RB500,General Repair/Maint Buildings,3000,routine maintenance Geoclima Chiller,,420983,412,NET,Cooltherm,06087Z
Gloucester City Council,,Kings Quarter,RY146,Contract Payments,0020,to correct cis adjustment,,421025,17757.88,CAP,Wye Valley Demolition Ltd,07242C
Gloucester City Council,,Kings Quarter,RY146,Contract Payments,0020,to correct cis adjustments,,421026,67584.38,CAP,Wye Valley Demolition Ltd,07242C
Gloucester City Council,,REDACTED,REDACTED,REDACTED,REDACTED,REDACTED,,REDACTED,140,NET,REDACTED,REDACTED
Gloucester City Council,,Public Health,HD200,Other Minor Supplies Services,5590,Adverts July 2016,,421756,162,NET,The Link Directories (Gloucester) Ltd,15565Z
Gloucester City Council,,Registration Of Electors,RS400,Fees For Services Received,5350,polling station,,421152,320,NET,Colwell Centre,48253N
Gloucester City Council,,Registration Of Electors,RS400,Fees For Services Received,5350,polling station,,421181,320,NET,Colwell Centre,48253N
Gloucester City Council,,Statutory Testing,RS310,Fees For Services Received,5350,Eastgate market fire alarm,,420982,493,NET,Allcoopers Ltd,52921E
,,,,,,,,Sum:,9888574.88,,,
